Cogmind - Beta 11 X4 @@@ ROGUE MODE // 2021.05.26 @ 20:31:41 Player: Terminus Result: Destroyed by B-99 Colossus with Multirail Performance ------------- Evolutions (9) 4500 Regions Visited (37) 7400 Robots Destroyed (874) 4370 Value Destroyed (45631) 45631 Prototype IDs (92) 1840 Alien Tech Used (2) 400 Bonus (27115) 27115 TOTAL SCORE: 91256 Bonus ------- Triggered High Security 500 High Alert Combat Kills 18483 Follower Combat Kills 3828 Network Hubs Disabled 200 Aligned with FarCom 300 Met Data Miner 300 Met Imprinter 300 Met Zhirov 300 Built Enhanced Grunts 300 A7 Reached Mainframe 300 Found Hidden Lab 3000 Friendly Fire -696 Cogmind --------- Core Integrity 0/1600 Matter 288/300 Energy 99/100 System Corruption 72% Temperature Cool (0) Movement Core (50) Location -1/Command Parts ------- > --- POWER (2) -------- (None) > --- PROPULSION (4) --- (None) > --- UTILITY (15) ----- (None) > --- WEAPON (4) ------- (None) > --- INVENTORY (5) ---- Advanced Heat Sink Advanced Weapon Cycler Mini Smartbomb Launcher Plasma Cutter CR-A16's Behemoth Slayer Peak State ------------ > --- POWER ------------ Vortex Chain Reactor > --- PROPULSION ------- High-density Centrium Heavy Treads High-density Centrium Heavy Treads > --- UTILITY ---------- Experimental Power Amplifier Coolant Network Huge Storage Unit Experimental Energy Well Modified TNC Experimental Targeting Computer Experimental Target Analyzer Advanced Core Analyzer Experimental Weapon Cycler Centrium Heavy Armor Plating Experimental Force Field Improved Hacking Suite Advanced Hacking Suite > --- WEAPON ----------- Multirail Multirail Multirail Multirail > --- INVENTORY -------- Centrium Heavy Treads Centrium Heavy Treads Advanced Heat Sink Advanced Energy Well Matter Compressor Advanced Weapon Cycler Improved Weapon Shielding Centrium Heavy Armor Plating Long-range Tractor Beam Cooled Particle Cannon Hypervelocity Railgun Hypervelocity Railgun Hypervelocity Railgun Gamma Bomb Array Gamma Bomb Array Mini Smartbomb Launcher Plasma Cutter CR-A16's Behemoth Slayer [Rating: 241] Favorites ----------- Power Antimatter Reactor Engine Ion Engine Power Core Enhanced Nuclear Core Reactor Antimatter Reactor Propulsion Medium Treads Treads Medium Treads Flight Unit Impulse Thruster Array Utility Huge Storage Unit Device Experimental Cooling System Storage Huge Storage Unit Processor Experimental Targeting Computer Hackware Advanced Hacking Suite Protection Layered Medium Armor Plating Weapon Flak Gun Energy Gun Advanced Beam Rifle Energy Cannon Cooled Particle Cannon Ballistic Gun Flak Gun Launcher Gamma Bomb Array Special Weapon Plasma Cutter Slashing Weapon Makeshift Axe Piercing Weapon CR-A16's Behemoth Slayer Build | -11 -10 -10 -10 -9 -8 -7 -7 -7 -7 -6 -6 -6 -6 -6 -6 -6 -5 -5 -5 -5 -5 -5 -5 -5 -4 -4 -4 -4 -4 -4 -3 -3 -3 -3 -2 -1 -1 ------- Run | Scr Mat Min Exi Min Mat Fac Low Low Zio Pro Fac Was Fac Low Low Dat Pro Fac Was Fac Ext Cet Arc Hub Fac Was Fac Upp Upp Zhi Pro Res Arm Lab Res Acc Com Slots Evolved 18 | . . . . . 4 2 . . . . 2 . . . . . . 2 . . . . . . 2 . . . . . . 2 . . 2 2 . Power 1 | . . . . . . . . . . . . . . . . . . . . . . . . . . . . . . . . . . . 1 . . Propulsion 2 | . . . . . 1 1 . . . . . . . . . . . . . . . . . . . . . . . . . . . . . . . Utility 13 | . . . . . 2 1 . . . . 1 . . . . . . 2 . . . . . . 2 . . . . . . 2 . . 1 2 . Weapon 2 | . . . . . 1 . . . . . 1 . . . . . . . . . . . . . . . . . . . . . . . . . . Parts Attached 601 | 6 10 1 . 1 38 51 . 2 4 5 11 18 17 . 2 13 13 18 9 14 4 4 1 8 12 7 10 6 . 13 2 49 69 1 44 100 38 Power 23 | 1 1 . . . 1 3 . . . . . 3 . . 1 . . 1 1 . . . . . . . . . . 1 . 4 . . 4 . 2 Engine 6 | 1 1 . . . 1 1 . . . . . 1 . . . . . 1 . . . . . . . . . . . . . . . . . . . Core 2 | . . . . . . 2 . . . . . . . . . . . . . . . . . . . . . . . . . . . . . . . Reactor 15 | . . . . . . . . . . . . 2 . . 1 . . . 1 . . . . . . . . . . 1 . 4 . . 4 . 2 Propulsion 50 | 2 3 . . . 5 9 . . . 2 1 4 . . . . 1 1 4 3 . 3 1 . . . 1 . . . . . 4 . . . 6 Treads 48 | 2 3 . . . 5 9 . . . 2 1 4 . . . . 1 1 4 3 . 3 1 . . . 1 . . . . . 4 . . . 4 Leg . | . . . . . . . . . . . . . . . . . . . . . . . . . . . . . . . . . . . . . . Wheel . | . . . . . . . . . . . . . . . . . . . . . . . . . . . . . . . . . . . . . . Hover . | . . . . . . . . . . . . . . . . . . . . . . . . . . . . . . . . . . . . . . Flight 2 | . . . . . . . . . . . . . . . . . . . . . . . . . . . . . . . . . . . . . 2 Utility 254 | 1 5 1 . . 13 12 . 2 1 1 2 7 14 . . 2 6 6 2 2 3 1 . 4 7 6 4 4 . 9 . 19 35 . 17 55 13 Device 112 | . 1 . . . 4 2 . . . 1 . 3 3 . . . 2 1 1 1 2 . . . 3 4 1 2 . 6 . 7 17 . 10 38 3 Storage 11 | 1 2 . . . 1 . . . . . . . . . . . . . . . . . . 1 . . 1 . . 1 . . . . . 2 2 Processor 16 | . . . . . . 1 . . . . 1 . 4 . . . . 1 . . . . . . 2 1 . 1 . . . 1 1 . . 2 1 Hackware 15 | . . . . . . 1 . . 1 . 1 . 1 . . . . 2 . . . . . 1 1 . 1 . . 1 . 1 1 . 1 2 . Protection 100 | . 2 1 . . 8 8 . 2 . . . 4 6 . . 2 4 2 1 1 1 1 . 2 1 1 1 1 . 1 . 10 16 . 6 11 7 Artifact . | . . . . . . . . . . . . . . . . . . . . . . . . . . . . . . . . . . . . . . Weapon 274 | 2 1 . . 1 19 27 . . 3 2 8 4 3 . 1 11 6 10 2 9 1 . . 4 5 1 5 2 . 3 2 26 30 1 23 45 17 Energy Gun 9 | . . . . . 7 1 . . . . . . . . . . . . . . . . . . . . . . . . . . 1 . . . . Energy Cannon 22 | . . . . . . 3 . . . . 1 . . . . . . 2 . 2 . . . 1 . . . . . . 1 1 5 . 3 2 1 Ballistic Gun 175 | 2 1 . . 1 11 17 . . 3 1 5 4 3 . 1 4 5 5 2 5 1 . . 2 3 1 3 1 . 2 1 20 19 1 10 29 12 Ballistic Cannon . | . . . . . . . . . . . . . . . . . . . . . . . . . . . . . . . . . . . . . . Launcher 21 | . . . . . 1 4 . . . 1 1 . . . . 2 1 . . 1 . . . 1 . . . . . . . . . . 2 3 4 Special Weapon 10 | . . . . . . 1 . . . . 1 . . . . 1 . 2 . . . . . . . . . . . . . . 1 . . 4 . Impact Weapon . | . . . . . . . . . . . . . . . . . . . . . . . . . . . . . . . . . . . . . . Slashing Weapon 2 | . . . . . . . . . . . . . . . . 2 . . . . . . . . . . . . . . . . . . . . . Piercing Weapon 35 | . . . . . . 1 . . . . . . . . . 2 . 1 . 1 . . . . 2 . 2 1 . 1 . 5 4 . 8 7 . Special Melee Weapon . | . . . . . . . . . . . . . . . . . . . . . . . . . . . . . . . . . . . . . . Unidentified Prototypes 40 | . . . . . 5 4 . . . . . . 1 . . . . 1 . 1 . 2 . 2 . 1 1 . . 5 . 2 11 . . 2 2 Corrupted Parts 4 | . . . . . . . . . . . . . . . . . . . . . . 1 . . . . . . . . . . . . . . 3 System Corruption 33 | . . . . . . . . . . . . . . . . . . . . . . 9 . . . . . . . . . . . . . . 24 Parts Lost 84 | . 1 1 . 1 3 5 . 1 . 3 . 8 . . 2 3 4 3 . . . . . 1 1 . . . . . . 4 3 . 2 6 32 Power 10 | . . . . . . 1 . . . . . 2 . . 1 . . 1 . . . . . . . . . . . . . 2 . . . . 3 Propulsion 9 | . . . . . . . . . . 2 . 1 . . . . 1 . . . . . . . . . . . . . . . . . . . 5 Utility 40 | . . 1 . . 2 1 . 1 . . . 2 . . . 2 3 1 . . . . . 1 . . . . . . . 2 2 . 2 5 15 Weapon 25 | . 1 . . 1 1 3 . . . 1 . 3 . . 1 1 . 1 . . . . . . 1 . . . . . . . 1 . . 1 9 Highest Loss Streak 22 | . 1 1 . 1 2 4 . 1 . 2 . 6 . . 2 2 2 2 . . . . . 1 1 . . . . . . 2 1 . 1 2 22 Average Slot Usage (%) 91 | . 98 99 100 100 99 99 100 100 96 99 100 86 85 86 86 81 83 87 87 87 87 87 88 88 88 89 89 89 89 88 89 89 89 90 88 85 76 Engine 1 | . 14 14 14 14 9 1 . . . . . . . . . . . 3 1 . . . . . . . . . . . . . . . . . . Core 1 | . . . . . . 5 7 7 7 7 6 . . . . . . . . . . . . . . . . . . . . . . . . . . Reactor 3 | . . . . . . . . . . . . 5 6 6 6 6 6 1 3 5 5 5 5 5 5 5 5 5 5 5 5 3 4 4 6 4 5 Treads 16 | . 27 28 28 28 26 29 30 30 30 29 26 14 13 13 13 13 12 11 10 10 11 10 11 11 10 10 10 10 10 10 10 9 8 9 8 8 7 Device 8 | . 2 . . . 11 7 7 7 7 7 6 5 5 6 6 6 6 5 5 5 11 11 11 11 9 10 10 9 10 9 10 9 10 9 8 14 14 Storage 6 | . 14 14 14 14 9 7 7 7 7 7 6 6 6 6 6 6 6 5 5 5 5 5 5 5 5 5 5 5 5 5 5 4 4 4 4 8 9 Processor 9 | . . . . . . 7 7 3 . . 6 6 6 6 6 6 6 11 11 10 5 5 5 5 15 15 15 20 21 21 21 21 19 19 17 15 11 Hackware 10 | . . . . . . 4 7 7 7 7 12 13 13 13 13 9 6 16 17 17 17 17 17 17 15 15 15 15 15 15 15 14 18 19 16 13 3 Protection 7 | . 9 13 14 14 14 9 7 11 15 15 6 5 5 6 6 5 12 5 5 5 5 5 5 5 5 4 4 . . . . 5 3 4 7 5 8 Ballistic Gun 20 | . 28 28 28 28 20 22 23 23 19 22 25 25 25 26 26 5 24 21 23 22 22 23 23 22 20 21 19 17 15 18 16 18 18 15 15 15 11 Naked Turns 4 | . . . . . . . . . . . . . . . . . . . . . . . . . . . . . . . . . . . . . 4 Heaviest Build 200 | 14 32 32 32 32 110 118 108 129 129 129 133 122 122 121 121 138 134 129 122 125 123 123 122 122 128 125 122 121 112 115 113 134 142 142 161 187 200 Greatest Support 180 | 40 46 46 46 46 69 112 112 112 112 112 112 140 140 140 140 140 140 140 140 140 140 150 150 150 150 150 160 160 160 160 160 160 180 180 180 180 180 Greatest Overweight (x) 1 | 1 . . . . 1 1 . 1 1 1 1 1 . . . . . . 1 . . 1 . . . . . . . . . . . . . 1 1 Average Overweight (x) . | . . . . . 1 . . . 1 1 . . . . . . . . . . . . . . . . . . . . . . . . . . . Largest Inventory Capacity 25 | 8 15 15 15 15 25 25 25 25 25 25 25 25 25 25 25 25 25 25 25 25 25 25 25 25 25 25 25 25 25 25 25 25 25 25 25 25 25 Average Capacity 24 | 7 10 15 15 15 24 25 25 25 25 25 25 25 25 25 25 25 25 25 25 25 25 25 25 25 25 25 25 25 25 25 25 25 25 25 25 25 24 Most Carried 25 | 2 12 12 14 14 25 25 24 25 25 25 25 25 25 25 25 25 25 25 25 25 25 25 25 25 25 25 25 25 25 25 25 25 25 25 25 25 25 Average Carried 23 | 1 7 11 13 13 21 24 23 24 24 23 24 24 24 25 23 24 21 23 24 24 25 24 25 24 24 25 25 24 25 24 24 24 24 25 24 24 19 Final Capacity 25 | 8 15 15 15 15 25 25 25 25 25 25 25 25 25 25 25 25 25 25 25 25 25 25 25 25 25 25 25 25 25 25 25 25 25 25 25 25 5 Final Carried 25 | 2 12 12 14 14 25 23 24 25 25 23 25 25 25 25 25 25 21 24 25 25 25 25 25 25 25 25 25 25 25 25 25 25 25 25 25 22 5 Class Distribution -------------------- 31% | Hacker-Gunner 14% | Tank 9% | Skirmisher 7% | Mutant 6% | Machinist-Gunner 6% | Scavenger-Skirmisher 5% | Hacker-Mutant 4% | Wizard-Gunner 3% | Hacker-Skirmisher 3% | Scavenger-Gunner Dominant Class ---------------- Mutant | -10/Materials Mutant | -10/Mines Mutant | -10/Exiles Mutant | -9/Mines Tank | -8/Materials Skirmisher | -7/Factory Gunner | -7/Lower Caves Tank | -7/Lower Caves Tank | -7/Zion Tank | -6/Proximity Caves Hacker-Skirmisher | -6/Factory Scavenger-Skirmisher | -6/Waste Scavenger-Skirmisher | -6/Factory Scavenger-Gunner | -6/Lower Caves Scavenger-Gunner | -6/Lower Caves Scavenger-Mutant | -6/Data Miner Scavenger-Tank | -5/Proximity Caves Hacker-Gunner | -5/Factory Hacker-Gunner | -5/Waste Hacker-Gunner | -5/Factory Hacker-Gunner | -5/Extension Hacker-Gunner | -5/Cetus Hacker-Gunner | -5/Archives Hacker-Gunner | -5/Hub_04(d) Hacker-Gunner | -4/Factory Hacker-Gunner | -4/Waste Hacker-Gunner | -4/Factory Hacker-Assassin | -4/Upper Caves Hacker-Assassin | -4/Upper Caves Hacker-Mutant | -4/Zhirov Hacker-Mutant | -3/Proximity Caves Hacker-Gunner | -3/Research Wizard-Gunner | -3/Armory Wizard-Mutant | -3/Lab Hacker-Gunner | -2/Research Machinist-Gunner | -1/Access Machinist-Gunner | -1/Command Resources | -11 -10 -10 -10 -9 -8 -7 -7 -7 -7 -6 -6 -6 -6 -6 -6 -6 -5 -5 -5 -5 -5 -5 -5 -5 -4 -4 -4 -4 -4 -4 -3 -3 -3 -3 -2 -1 -1 ----------- Run | Scr Mat Min Exi Min Mat Fac Low Low Zio Pro Fac Was Fac Low Low Dat Pro Fac Was Fac Ext Cet Arc Hub Fac Was Fac Upp Upp Zhi Pro Res Arm Lab Res Acc Com Matter Collected 33241 | 201 596 71 . 29 1009 2173 19 485 40 206 424 600 738 134 220 390 742 644 355 1505 437 223 83 461 271 409 213 177 140 225 40 3703 3690 . 3008 7114 2466 Remotely 9435 | . . . . . . . . . . . . . 50 . . . . 111 . . . . . . . . . . . . . 979 2746 . 1399 2895 1255 Salvage Created 59542 | . 814 152 . 44 1834 2848 . 835 . 328 320 1556 1435 143 455 452 1404 975 1188 2632 501 66 76 686 269 1472 357 56 27 115 . 6781 5114 . 4212 11701 10694 Parts 2685 | . 35 11 . 3 94 134 . 38 . 21 19 29 56 8 10 22 55 29 20 112 20 5 4 23 19 26 18 2 . 2 . 326 278 . 239 571 456 Haulers Intercepted 34 | . 2 . . . 6 6 . 1 . . . . 3 . . . . 1 . 4 . . . 2 . . 1 . . . . 2 1 . 2 3 . Recyclers Shooed 28 | . 2 . . . 1 4 . . . . . . . . . . . . . 7 1 . . . 1 . . . . . . 5 . . 5 1 1 Parts Field Recycled . | . . . . . . . . . . . . . . . . . . . . . . . . . . . . . . . . . . . . . . Retrieved Matter . | . . . . . . . . . . . . . . . . . . . . . . . . . . . . . . . . . . . . . . Parts Self-Destructed 128 | . . . . . . . . 37 . 20 . . . 10 9 . 48 . . . . . . . . . . 2 . 2 . . . . . . . Prevented 5 | . . . . . . . . . . . . . . . . . 5 . . . . . . . . . . . . . . . . . . . . Kills | -11 -10 -10 -10 -9 -8 -7 -7 -7 -7 -6 -6 -6 -6 -6 -6 -6 -5 -5 -5 -5 -5 -5 -5 -5 -4 -4 -4 -4 -4 -4 -3 -3 -3 -3 -2 -1 -1 ------- Run | Scr Mat Min Exi Min Mat Fac Low Low Zio Pro Fac Was Fac Low Low Dat Pro Fac Was Fac Ext Cet Arc Hub Fac Was Fac Upp Upp Zhi Pro Res Arm Lab Res Acc Com Combat Hostiles Destroyed 684 | . 16 7 . 3 26 49 . 15 . 10 6 6 12 5 7 4 22 11 4 29 6 1 1 6 4 5 4 1 . . . 67 62 . 51 127 117 Melee 1 | . . . . . . . . . . . . . . . . . . . . . . . . . . . . . . . . . . . . . 1 Guns 570 | . 16 7 . 3 25 36 . 15 . 7 2 6 12 5 7 . 20 11 4 29 6 1 1 6 3 5 4 1 . . . 67 60 . 41 111 59 Cannons 2 | . . . . . . . . . . . . . . . . . . . . . . . . . . . . . . . . . 2 . . . . AOE 77 | . . . . . . 13 . . . 3 4 . . . . . 1 . . . . . . . . . . . . . . . . . 9 12 35 Classes Destroyed 25 | . 6 . . . 5 4 . 1 . . . 1 . . 1 . 1 . . 1 . . . . . . . . . . . 1 3 . . . 1 Worker 40 | . . . . . 5 5 . . . . 1 . 2 . . . . 1 . 3 . . . . . . . . . . . 7 . . . 10 6 Builder 11 | . 1 . . . 1 . . . . . . . . . . . . 1 . 2 . . . . . . . . . . . 3 . . . 3 . Tunneler 5 | . . . . . 2 . . . . . . . . . . . . . . . . . . . . . . . . . . . . . 3 . . Hauler 34 | . 2 . . . 6 6 . 1 . . . . 3 . . . . 1 . 4 . . . 2 . . 1 . . . . 2 1 . 2 3 . Recycler 27 | . 1 . . . 3 4 . . . . 1 . 4 . . . . 3 . 2 . . . . . . . . . . . 5 . . 2 1 1 Carrier 7 | . . . . . . . . . . . . . . . . . . . . . . . . . . . . . . . . 2 2 . . 1 2 Mechanic 17 | . . . . . . . . . . . . . . . . . . . . 1 . . . . . . . . . . . 1 1 . . 3 11 Operator 7 | . . . . . 1 . . . . . . . . . . . . . . . . . . . . . 1 . . . . 1 . . . 4 . Watcher 40 | . 1 . . . 3 1 . . . . 1 . 3 . . . . 2 . 4 3 . . 3 . . . . . . . 7 3 . 3 6 . Swarmer 116 | . 3 5 . 3 7 7 . 3 . 7 4 . 5 3 1 . 1 7 . . . . . . . . . . . . . 8 12 . 19 21 . Saboteur 11 | . . . . . . . . . . . . . . . . . 1 . . . . . . . . . . . . . . 1 1 . . 1 7 Grunt 221 | . 13 2 . . 10 18 . 11 . 3 2 . 3 . 5 . 8 . . 13 4 . . 5 . . 1 . . . . 19 14 . 11 43 36 Brawler 26 | . . . . . 1 3 . . . . . . . . . . 3 . . . . . . . . . . . . . . 4 1 . . 7 7 Duelist 32 | . . . . . . 2 . . . . . . . . . . 5 . . . . . . . . . . . . . . 3 2 . . 9 11 Protector 14 | . . . . . . 1 . . . . . . . . . . . . . 1 . . . . . . . . . . . 2 2 . . 3 5 Sentry 62 | . . . . . 8 9 . . . . . . 1 1 1 . 1 . . 2 1 . 1 1 1 . . . . . . 10 7 . 8 10 . Demolisher 3 | . . . . . . . . . . . . . . . . . . . . . . . . . . . . . . . . . 3 . . . . Specialist 1 | . . . . . . . . . . . . . . . . . . . . . . . . . . . . . . . . . 1 . . . . Hunter 35 | . . . . . . 1 . . . . . . . . . . 4 2 . 2 . 1 . . . . . . . . . 4 4 . 2 10 5 Programmer 114 | . . . . . . 8 . . . . . . 3 1 . . . 2 . 11 . . . . 2 . 3 1 . . . 16 14 . 10 19 24 Behemoth 8 | . . . . . . . . 1 . . . . . . . . . . . . 1 . . . 1 . . . . . . . . . 1 4 . Compactor 15 | . . . . . . . . . . . . 6 . . . . . . 4 . . . . . . 5 . . . . . . . . . . . Enhanced Grunt 4 | . . . . . . . . . . . . . . . . 4 . . . . . . . . . . . . . . . . . . . . . Striker 9 | . . . . . . . . . . . . . . . . . . . . . . . . . . . . . . . . . . . . . 9 Executioner 14 | . . . . . . . . . . . . . . . . . . . . . . . . . . . . . . . . . 1 . . . 13 Decomposer 1 | . . . . . . . . . . . . . . . . . . . . . . . . . . . . . 1 . . . . . . . . Samaritan 1 | . . . . . . . . . . . . . . . 1 . . . . . . . . . . . . . . . . . . . . . . Best Kill Streak 31 | . 6 3 . 3 8 7 . 4 . 4 5 4 4 3 7 2 9 5 2 6 3 1 1 5 1 4 2 1 . . . 16 6 . 6 16 31 Combat Bots Only 27 | . 4 3 . 3 7 5 . 4 . 4 4 4 3 3 7 2 9 5 2 5 3 1 1 5 1 4 2 1 . . . 10 6 . 5 10 27 Max Kills in Single Turn 5 | . 1 2 . 1 2 5 . 1 . 2 2 1 2 1 2 2 2 2 1 2 1 1 1 1 1 1 1 1 1 . . 4 2 . 4 3 5 Gunslinging 2 | . . 1 . . . 1 . . . . . . . . 1 . 1 . . . . . . . . . . . . . . 1 1 . 1 1 2 Exploded 5 | . . . . . . 5 . . . 2 2 . . . . . 1 . . . . . . . . . . . . . . . . . 4 2 4 Melee 1 | . . . . . . . . . . . . . . . . . . . . . . . . . . . . . . . . . . . . . 1 Uniques/NPCs Destroyed 1 | . . . . . . . . . . . . . . . . 1 . . . . . . . . . . . . . . . . . . . . . Data Miner (-6/Data Miner) Combat | -11 -10 -10 -10 -9 -8 -7 -7 -7 -7 -6 -6 -6 -6 -6 -6 -6 -5 -5 -5 -5 -5 -5 -5 -5 -4 -4 -4 -4 -4 -4 -3 -3 -3 -3 -2 -1 -1 -------- Run | Scr Mat Min Exi Min Mat Fac Low Low Zio Pro Fac Was Fac Low Low Dat Pro Fac Was Fac Ext Cet Arc Hub Fac Was Fac Upp Upp Zhi Pro Res Arm Lab Res Acc Com Damage Taken 35656 | . 903 134 . 59 1015 2877 . 802 . 506 73 260 312 242 680 743 1947 518 . 1076 164 123 . 236 773 22 200 125 . . . 3340 1482 . 1150 3796 12098 Core 2771 | . 143 . . 9 45 144 . 80 . 47 . 110 . 31 37 . 57 21 . 106 18 34 . . 96 . . 19 . . . 143 104 . . 192 1335 Absorbed by Shields 6597 | . . . . . . . . . . . . . . . . . . . . 9 69 74 . . . . . . . . . . 258 . . 3952 2235 Reduced by Siege Mode 2363 | . . . . . . . . . . . . . 26 4 55 46 105 19 . 67 . . . 44 92 . . 18 . . . 318 163 . 90 133 1183 Core Remaining (%) 79 | 100 . . . 39 91 . . . . 61 . . . . . . 72 . . . . . . 82 . . . . . . 90 . . 81 100 . . Volleys Fired 1504 | . 77 11 . 4 97 136 . 27 . 13 15 18 25 6 10 13 34 44 13 85 14 5 4 23 7 16 11 2 . . 16 137 136 . 103 249 153 Largest 4 | . 2 2 . 2 3 3 . 3 . 3 4 4 4 4 4 2 4 4 4 4 4 4 4 4 4 4 4 4 . . 1 4 4 . 4 4 4 Hottest 183 | . 40 40 . 40 183 84 . 84 . 84 112 112 112 112 112 79 112 112 112 112 112 112 112 112 112 112 112 112 . . 30 155 160 . 160 180 180 Shots Fired 4682 | . 154 22 . 8 290 350 1 80 . 35 30 67 100 25 42 23 120 104 50 255 55 18 13 70 22 64 42 8 . . 16 524 473 . 368 917 336 Gun 4437 | . 154 22 . 8 290 320 1 80 . 33 20 67 100 25 42 . 114 81 50 231 55 18 13 69 22 64 42 8 . . . 523 461 . 359 899 266 Cannon 107 | . . . . . . 14 . . . . 6 . . . . . . 16 . 24 . . . 1 . . . . . . 16 1 12 . 5 7 5 Launcher 126 | . . . . . . 15 . . . 2 3 . . . . 23 6 . . . . . . . . . . . . . . . . . 4 8 65 Special 12 | . . . . . . 1 . . . . 1 . . . . . . 7 . . . . . . . . . . . . . . . . . 3 . Kinetic 4311 | . 154 22 . 8 164 320 1 80 . 33 20 67 100 25 42 . 114 81 50 231 55 18 13 69 22 64 42 8 . . . 523 461 . 359 899 266 Thermal 236 | . . . . . 126 14 . . . . 6 . . . . . . 16 . 24 . . . 1 . . . . . . 16 1 12 . 5 10 5 Explosive 17 | . . . . . . . . . . 2 3 . . . . . . . . . . . . . . . . . . . . . . . 4 8 . Electromagnetic 109 | . . . . . . 15 . . . . . . . . . 23 6 . . . . . . . . . . . . . . . . . . . 65 Robot Hit Streak 78 | . 14 8 . 3 10 30 5 13 . 8 6 25 68 20 13 2 45 29 52 78 25 10 18 63 31 24 30 44 . . . 44 41 . 39 42 58 Robot Miss Streak 11 | . 2 2 . 1 6 6 1 7 . 10 5 4 6 10 5 . 6 10 3 6 6 3 3 11 2 2 4 1 . . . 4 4 . 4 3 3 Penetration Max 4 | . . . . . . . . . . . . . . . . . . . . . . . . . . . . . . . . 3 2 . 2 2 4 Secondary Targets 92 | . . 3 . . 4 4 . 1 . 2 . 1 1 1 3 . 7 1 . 2 3 . . 2 . . . . . . . 11 14 . 2 12 18 Max Gunslinging Chain 2 | . . 1 . . 1 2 . 1 . 1 . 1 1 1 1 . 1 1 . 1 1 . . 1 . . . . . . . 2 1 . 1 2 2 Shots Hit Robots 3575 | . 117 16 . 5 198 269 1 66 . 31 19 65 78 20 40 3 99 66 47 187 51 16 13 58 26 56 29 8 1 1 . 410 339 . 276 700 264 Core Hits 3432 | . 39 11 . 3 79 190 5 93 . 41 29 76 116 19 56 16 150 82 69 311 77 28 21 95 30 71 42 6 . . . 385 143 . 135 411 603 Critical Kills 332 | . . . . . . . . . . . . . . . . . . . . . . . . . . . . . . . . 65 64 . 48 119 36 Critical Parts Destroyed 464 | . 2 . . . 1 2 . . . . . . . . . . . . . . . . . . . . . . . . . 69 81 . 66 180 63 Critical Strikes 827 | . 2 . . . 8 2 . . . . . . . . . . . . . . . . . . . . . . . . . 139 147 . 119 305 105 Burn 7 | . . . . . 7 . . . . . . . . . . . . . . . . . . . . . . . . . . . . . . . . Destroy 819 | . 2 . . . 1 2 . . . . . . . . . . . . . . . . . . . . . . . . . 138 147 . 119 305 105 Puncture 1 | . . . . . . . . . . . . . . . . . . . . . . . . . . . . . . . . 1 . . . . . Melee Attacks 138 | . . . . . . . . . . . . . . . . 3 . 4 . 2 . . . . 6 . 7 16 6 1 . 25 5 . 43 20 . Impact . | . . . . . . . . . . . . . . . . . . . . . . . . . . . . . . . . . . . . . . Slashing 1 | . . . . . . . . . . . . . . . . 1 . . . . . . . . . . . . . . . . . . . . . Piercing 137 | . . . . . . . . . . . . . . . . 2 . 4 . 2 . . . . 6 . 7 16 6 1 . 25 5 . 43 20 . Sneak Attacks 5 | . . . . . . . . . . . . . . . . 1 . 1 . . . . . . . . . . 1 . . 1 . . 1 . . Combat Hostiles 1 | . . . . . . . . . . . . . . . . . . . . . . . . . . . . . . . . . . . 1 . . Follow-up Attacks . | . . . . . . . . . . . . . . . . . . . . . . . . . . . . . . . . . . . . . . Damage Inflicted 86338 | . 1502 233 . 68 3329 7303 32 1634 . 803 713 2055 2170 425 877 507 2767 1725 1615 5813 1504 317 375 1732 863 1818 819 297 90 . . 7329 3001 . 3254 8751 22617 Guns 63312 | . 1484 213 . 68 3292 5197 32 1634 . 577 322 2055 2065 425 877 . 2276 1343 1615 5586 1440 317 375 1673 702 1818 819 297 . . . 7160 2864 . 2154 6787 7845 Cannons 165 | . . . . . . 28 . . . . . . . . . . . . . . . . . . . . . . . . . . 137 . . . . Explosions 21394 | . . . . . . 1866 . . . 226 363 . . . . 426 491 270 . 156 . . . 15 . . . . . . . . . . 1079 1730 14772 Melee 563 | . . . . . . . . . . . . . . . . 81 . 97 . . . . . . 161 . . . 90 . . 134 . . . . . Ramming 880 | . 18 20 . . 37 212 . . . . 28 . 105 . . . . 15 . 71 64 . . 44 . . . . . . . 35 . . 21 210 . Kinetic 61792 | . 1484 213 . 68 1772 5197 32 1634 . 577 322 2055 2065 425 877 . 2276 1343 1615 5586 1440 317 375 1673 702 1818 819 297 . . . 7160 2864 . 2154 6787 7845 Thermal 9095 | . . . . . 1520 507 . . . . . . . . . . . 57 . 156 . . . . . . . . . . . . 137 . . 24 6694 Explosive 3846 | . . . . . . 283 . . . 226 363 . . . . . . 213 . . . . . . . . . . . . . . . . 1079 1682 . Electromagnetic 10162 | . . . . . . 1104 . . . . . . . . . 426 491 . . . . . . 15 . . . . . . . . . . . 48 8078 Impact . | . . . . . . . . . . . . . . . . . . . . . . . . . . . . . . . . . . . . . . Slashing . | . . . . . . . . . . . . . . . . . . . . . . . . . . . . . . . . . . . . . . Piercing 563 | . . . . . . . . . . . . . . . . 81 . 97 . . . . . . 161 . . . 90 . . 134 . . . . . Highest Corruption 72 | . . . . . . 9 9 9 9 . . . 5 6 6 6 6 3 30 33 35 44 44 45 2 2 . 1 1 1 . 10 15 15 4 6 72 Average Corruption 10 | . . . . . . 4 9 9 9 . . . 4 5 6 6 6 2 19 31 33 41 44 44 2 1 . 1 1 1 . 6 13 15 1 3 18 Corruption Purged 3 | . . . . . . . . . . . . . . . . . . . . . . . . . . 2 . . . 1 . . . . . . . Effects 1029 | . . . . . . 91 15 26 6 . . . 30 13 16 11 29 5 22 162 97 24 10 82 1 1 . 1 1 . . 57 121 2 24 106 76 Message Errors 211 | . . . . . . 22 3 3 2 . . . 7 3 4 5 7 1 5 22 19 2 1 17 1 . . . 1 . . 15 23 . 11 30 7 Matter Fused 217 | . . . . . . 18 3 8 . . . . 11 1 2 1 6 3 1 34 19 7 1 13 . . . . . . . 17 23 1 6 31 11 Heat Flow Errors 98 | . . . . . . 10 1 4 . . . . . 2 3 1 3 1 3 17 9 2 1 5 . 1 . . . . . 6 11 . . 11 7 Energy Discharges 113 | . . . . . . 22 2 4 1 . . . 8 4 3 2 3 . . 13 5 2 . 4 . . . . . . . 9 13 . 4 8 6 Parts Rejected 4 | . . . . . . . . . . . . . . . . . . . . . . . 1 1 . . . . . . . . 1 . . 1 . Data Loss (minor) 117 | . . . . . . 8 3 4 3 . . . 4 2 2 . 6 . 2 19 9 1 1 10 . . . 1 . . . 3 9 . 3 17 10 Data Loss (major) 34 | . . . . . . 5 2 2 . . . . . . . 2 . . 1 3 7 1 . 1 . . . . . . . 2 3 1 . . 4 Misfires 34 | . . . . . . 4 1 . . . . . . 1 2 . 3 . 1 4 4 . . 2 . . . . . . . 3 4 . . 1 4 Alerts 14 | . . . . . . . . . . . . . . . . . . . . 4 . 2 1 . . . . . . . . . 5 . . . 2 Misdirections 102 | . . . . . . . . . . . . . . . . . . . 6 29 20 5 1 21 . . . . . . . . 13 . . . 7 Weapon Failures 85 | . . . . . . 2 . 1 . . . . . . . . 1 . 3 17 5 2 3 8 . . . . . . . 2 16 . . 7 18 Overload Shots 14 | . . . . . . . . . . . . . . . . . . . . 1 . . . . . . . . . . . . . . 1 7 5 Overflow Damage 911 | . . . . . . 69 . . . 7 . . 12 . . . 6 59 . 3 6 . . 4 . . . . 86 . . 37 . . 96 79 447 Projectiles . | . . . . . . . . . . . . . . . . . . . . . . . . . . . . . . . . . . . . . . Explosions 659 | . . . . . . 62 . . . 7 . . . . . . 6 2 . . . . . . . . . . . . . . . . 96 39 447 Melee 252 | . . . . . . 7 . . . . . . 12 . . . . 57 . 3 6 . . 4 . . . . 86 . . 37 . . . 40 . Knockbacks 6 | . . 1 . . . 2 . . . . . . 2 . . . . . . . . . . . . . . . . . . . . . . 1 . Impact 6 | . . 1 . . . 2 . . . . . . 2 . . . . . . . . . . . . . . . . . . . . . . 1 . Kinetic . | . . . . . . . . . . . . . . . . . . . . . . . . . . . . . . . . . . . . . . Secondary . | . . . . . . . . . . . . . . . . . . . . . . . . . . . . . . . . . . . . . . Self-Inflicted Damage 436 | . . . . . . 101 . . . 19 . . . . . . 44 . . 64 . . . 97 . . . . . . . . . . . . 111 Shots 26 | . . . . . . 3 . . . 1 . . . . . . 4 . . 1 . . . 1 . . . . . . . . . . . . 16 Rammed 60 | . 5 6 . . 6 11 . . . . . . 5 . . . . 1 . 4 5 . . 2 . . . . . . . 2 . . 3 10 . Targets Rammed 68 | . 5 6 . . 7 13 . . . . 1 . 5 . . . . 1 . 5 5 . . 2 . . . . . . . 2 . . 3 13 . Kicked . | . . . . . . . . . . . . . . . . . . . . . . . . . . . . . . . . . . . . . . Crushed 8 | . . . . . 1 2 . . . . 1 . . . . . . . . 1 . . . . . . . . . . . . . . . 3 . Highest Temperature 310 | . 6 8 . . 241 310 113 241 . 21 3 . . 165 229 154 223 102 205 278 248 185 103 251 6 198 2 . . . . 163 206 . 132 168 162 Average Temperature 64 | . 2 3 . . 84 62 59 68 . 10 3 . . 76 64 86 96 32 106 119 72 65 51 85 6 121 2 . . . . 79 62 . 9 94 46 Received Heat Transfer 4345 | . 441 51 . . 315 402 . 270 . 111 18 . 12 42 341 96 264 . . 166 101 . . 36 72 . 18 . . . . 386 94 . 99 227 783 Effects 2 | . . . . . . 1 . . . . . . . . . . . . . 1 . . . . . . . . . . . . . . . . . Energy Bleed 1 | . . . . . . . . . . . . . . . . . . . . 1 . . . . . . . . . . . . . . . . . Interference 1 | . . . . . . 1 . . . . . . . . . . . . . . . . . . . . . . . . . . . . . . . Siege Activations 171 | . . . . . . . . . . . . . 10 2 1 2 7 4 . 15 1 2 . 3 5 . 1 2 . . . 25 22 . 18 40 11 Total Turns 3724 | . . . . . . . . . . . . . 96 14 30 82 106 62 . 178 7 5 . 60 78 . 9 14 . . . 613 502 . 522 758 588 Longest Duration 261 | . . . . . . . . . . . . . 29 9 30 42 19 32 . 35 7 4 . 28 44 . 9 12 . . . 190 70 . 83 74 261 Robots Corrupted 27 | . . . . . . . . . . . . . . . . 4 1 . . . . . . . . . . . . . . . . . . . 22 Combat Hostiles 27 | . . . . . . . . . . . . . . . . 4 1 . . . . . . . . . . . . . . . . . . . 22 Parts Fried 90 | . . . . . . 4 . . . . . . . . . 10 4 . . . . . . . . . . . . . . . . . . 2 70 Impact Corruptions 9 | . . . . . . 1 . . . . . . 2 . . . . . . 1 1 . . 1 . . . . . . . . . . . 3 . Robots Melted 1 | . . . . . 1 . . . . . . . . . . . . . . . . . . . . . . . . . . . . . . . . Combat Hostiles 1 | . . . . . 1 . . . . . . . . . . . . . . . . . . . . . . . . . . . . . . . . Parts Melted 13 | . . . . . 8 . . . . . . . 1 . . . . . . 1 . . . . . . . . . . . . . . . . 3 Heat Transferred 8688 | . . . . . 3330 362 . . . . . . . . . . . 50 . 75 . . . . . . . . . . . . 185 . . 36 4650 Parts Sabotaged 4 | . . . . . . . . . . . . . . . . . . . . . . . . . . . . . . . . . . . . 4 . Parts Stolen . | . . . . . . . . . . . . . . . . . . . . . . . . . . . . . . . . . . . . . . Parts Stripped . | . . . . . . . . . . . . . . . . . . . . . . . . . . . . . . . . . . . . . . Power Chain Reactions 28 | . . . . . . 1 . . . . . . . . . 1 . . . . . . . . . . . . . . . . . . . . 26 Missiles Intercepted . | . . . . . . . . . . . . . . . . . . . . . . . . . . . . . . . . . . . . . . Alert | -11 -10 -10 -10 -9 -8 -7 -7 -7 -7 -6 -6 -6 -6 -6 -6 -6 -5 -5 -5 -5 -5 -5 -5 -5 -4 -4 -4 -4 -4 -4 -3 -3 -3 -3 -2 -1 -1 ------- Run | Scr Mat Min Exi Min Mat Fac Low Low Zio Pro Fac Was Fac Low Low Dat Pro Fac Was Fac Ext Cet Arc Hub Fac Was Fac Upp Upp Zhi Pro Res Arm Lab Res Acc Com Peak Influence 4420 | . 289 149 . 60 380 1213 . . . . 131 28 360 . . . . 588 199 687 679 374 302 891 347 25 1075 . . . . 1094 1808 . 920 2734 4420 Initial 1749 | . . 69 . . 23 . . . . . 46 28 . . . . . 96 199 125 336 159 149 105 347 10 . . . . . . 441 . . 552 1749 Average 441 | . 156 82 . 30 177 295 . . . . 54 2 165 . . . . 323 187 257 201 322 239 435 121 13 390 . . . . 518 726 . 209 875 2863 Maximum Alert Level 5 | . 1 . . . 1 4 . . . . . . 1 . . . . 2 . 2 2 1 1 3 1 . 3 . . . . 3 5 . 3 5 5 Low Security (%) 44 | 100 67 100 . 100 68 42 . . . . 100 100 59 . . . . 36 100 34 56 8 31 21 77 100 16 . . . . 28 10 . 50 17 . Level 1 23 | . 32 . . . 31 30 . . . . . . 40 . . . . 21 . 45 36 91 68 36 22 . 41 . . . . 2 17 . 40 9 . Level 2 15 | . . . . . . 18 . . . . . . . . . . . 42 . 19 6 . . 23 . . 35 . . . . 33 30 . 7 31 . Level 3 6 | . . . . . . 8 . . . . . . . . . . . . . . . . . 19 . . 6 . . . . 36 17 . 1 9 . Level 4 3 | . . . . . . 1 . . . . . . . . . . . . . . . . . . . . . . . . . . 16 . . 13 . Level 5 3 | . . . . . . . . . . . . . . . . . . . . . . . . . . . . . . . . . 8 . . 18 26 High Security 2 | . . . . . . . . . . . . . . . . . . . . . . . . . . . . . . . . . . . . . 73 Max Security . | . . . . . . . . . . . . . . . . . . . . . . . . . . . . . . . . . . . . . . Sterilizations 1 | . . . . . . . . . . . . . . . . . . . . . . . . . . . . . . . . . . . . 1 . Squads Dispatched 163 | . 4 . . . . 21 . . . . 4 . 7 . . . 1 2 . 9 1 . . 4 1 . 9 . . . . 14 10 . 8 34 34 Investigation 19 | . 4 . . . . 4 . . . . 1 . 1 . . . . . . 1 . . . 1 . . 1 . . . . . . . 2 4 . Extermination 49 | . . . . . . 8 . . . . 1 . 4 . . . . 1 . 5 . . . . 1 . 2 . . . . 6 7 . 5 8 1 Reinforcement 18 | . . . . . . 1 . . . . 1 . 2 . . . . . . 3 1 . . 1 . . 2 . . . . 2 1 . 1 3 . Assault 60 | . . . . . . 4 . . . . . . . . . . 1 . . . . . . 2 . . . . . . . 5 2 . . 13 33 Garrison 17 | . . . . . . 4 . . . . 1 . . . . . . 1 . . . . . . . . 4 . . . . 1 . . . 6 . Intercept . | . . . . . . . . . . . . . . . . . . . . . . . . . . . . . . . . . . . . . . Construction Impeded 6 | . . . . . . . . . . . . . 1 . . . . . . 1 1 . . . . . 1 . . . . . . . . 2 . Haulers Reinforced 6 | . . . . . . 1 . . . . . . 1 . . . . . . 1 . . . . . . . . . . . 1 . . 1 1 . Cargo Convoy Interrupts 2 | . . . . . . . . . . . . . . . . . . . . 1 . . . . . . . . . . . . 1 . . . . Stealth | -11 -10 -10 -10 -9 -8 -7 -7 -7 -7 -6 -6 -6 -6 -6 -6 -6 -5 -5 -5 -5 -5 -5 -5 -5 -4 -4 -4 -4 -4 -4 -3 -3 -3 -3 -2 -1 -1 --------- Run | Scr Mat Min Exi Min Mat Fac Low Low Zio Pro Fac Was Fac Low Low Dat Pro Fac Was Fac Ext Cet Arc Hub Fac Was Fac Upp Upp Zhi Pro Res Arm Lab Res Acc Com Distress Signals 33 | . 1 . . . 2 3 . . . . 2 . . . . . . . . 4 2 1 1 3 1 . 3 . . . . 1 4 . . 5 . Communications Jammed . | . . . . . . . . . . . . . . . . . . . . . . . . . . . . . . . . . . . . . . Distress Signals . | . . . . . . . . . . . . . . . . . . . . . . . . . . . . . . . . . . . . . . Times Spotted 953 | . 31 8 . 3 40 67 . 17 . 11 11 6 19 4 7 4 26 14 6 40 16 8 5 23 5 6 12 1 . . . 83 70 . 47 162 201 Peak Tracking Total 26 | . 7 3 . 3 6 6 . 5 . 4 5 3 4 3 7 2 9 5 2 5 8 5 2 8 2 3 3 1 . . . 8 6 . 5 8 26 Tactical Retreats 43 | . 1 . . . 1 2 . 2 . 1 . . 1 . . . 2 . . 1 . . . . . . . . . . . 2 5 . 10 11 4 Traps | -11 -10 -10 -10 -9 -8 -7 -7 -7 -7 -6 -6 -6 -6 -6 -6 -6 -5 -5 -5 -5 -5 -5 -5 -5 -4 -4 -4 -4 -4 -4 -3 -3 -3 -3 -2 -1 -1 ------- Run | Scr Mat Min Exi Min Mat Fac Low Low Zio Pro Fac Was Fac Low Low Dat Pro Fac Was Fac Ext Cet Arc Hub Fac Was Fac Upp Upp Zhi Pro Res Arm Lab Res Acc Com Traps Triggered 20 | . 3 . . . . 3 . . . . 1 . 5 . . . . 1 . 1 1 . . . 3 . . . . . . . . . . 2 . Indirectly 1 | . . . . . . 1 . . . . . . . . . . . . . . . . . . . . . . . . . . . . . . . Trap Hack Attempts . | . . . . . . . . . . . . . . . . . . . . . . . . . . . . . . . . . . . . . . Triggered . | . . . . . . . . . . . . . . . . . . . . . . . . . . . . . . . . . . . . . . Disarmed . | . . . . . . . . . . . . . . . . . . . . . . . . . . . . . . . . . . . . . . Reprogrammed . | . . . . . . . . . . . . . . . . . . . . . . . . . . . . . . . . . . . . . . Reused . | . . . . . . . . . . . . . . . . . . . . . . . . . . . . . . . . . . . . . . Traps Extracted . | . . . . . . . . . . . . . . . . . . . . . . . . . . . . . . . . . . . . . . Installed . | . . . . . . . . . . . . . . . . . . . . . . . . . . . . . . . . . . . . . . Triggered 2 | . . . . . . 1 . . . . . . . . . . . . . . . . . . . . . . . . 1 . . . . . . Machines | -11 -10 -10 -10 -9 -8 -7 -7 -7 -7 -6 -6 -6 -6 -6 -6 -6 -5 -5 -5 -5 -5 -5 -5 -5 -4 -4 -4 -4 -4 -4 -3 -3 -3 -3 -2 -1 -1 ---------- Run | Scr Mat Min Exi Min Mat Fac Low Low Zio Pro Fac Was Fac Low Low Dat Pro Fac Was Fac Ext Cet Arc Hub Fac Was Fac Upp Upp Zhi Pro Res Arm Lab Res Acc Com Machines Disabled 52 | . . . . . 1 7 . . . . . . 3 . . 1 1 10 . 3 1 1 1 6 . . 4 . . . . 2 7 . 1 2 1 Max in Single Turn 7 | . . . . . 1 5 . . . . . . . . . 1 1 7 . 2 . . . 3 . . . . . . . 1 1 . 1 1 1 Garrison Access 16 | . . . . . . 3 . . . . 2 . . . . . . . . . . . . 1 1 . 1 . . . . 2 . . 3 3 . Network Hub 1 | . . . . . . . . . . . . . . . . . . . . . . . . 1 . . . . . . . . . . . . . Machines Sabotaged . | . . . . . . . . . . . . . . . . . . . . . . . . . . . . . . . . . . . . . . Garrisons Compromised . | . . . . . . . . . . . . . . . . . . . . . . . . . . . . . . . . . . . . . . Overloaded Fab Kills . | . . . . . . . . . . . . . . . . . . . . . . . . . . . . . . . . . . . . . . Fab Network Shutdowns 6 | . . . . . . . . . . . . . . . . . . 1 . 1 . . . . . . 1 . . . . 1 1 . 1 . . Hacking | -11 -10 -10 -10 -9 -8 -7 -7 -7 -7 -6 -6 -6 -6 -6 -6 -6 -5 -5 -5 -5 -5 -5 -5 -5 -4 -4 -4 -4 -4 -4 -3 -3 -3 -3 -2 -1 -1 --------- Run | Scr Mat Min Exi Min Mat Fac Low Low Zio Pro Fac Was Fac Low Low Dat Pro Fac Was Fac Ext Cet Arc Hub Fac Was Fac Upp Upp Zhi Pro Res Arm Lab Res Acc Com Machines Accessed 171 | . 10 1 2 . 11 20 . . . . 7 . 6 . 1 4 . 5 . 11 11 1 . 10 5 . 9 . . 4 . 11 8 . 15 19 . Terminals 101 | . 7 1 . . 9 10 . . . . 3 . 2 . . . . 3 . 7 10 1 . 9 2 . 5 . . . . 7 4 . 10 11 . Fabricators 22 | . . . . . . 4 . . . . 1 . 1 . . . . 1 . 2 . . . . 2 . 2 . . . . 1 4 . 2 2 . Repair Stations 12 | . 1 . . . 1 2 . . . . 1 . 2 . . . . . . 2 1 . . . . . . . . . . . . . . 2 . Recycling Units 2 | . 2 . . . . . . . . . . . . . . . . . . . . . . . . . . . . . . . . . . . . Scanalyzers 7 | . . . . . 1 1 . . . . . . 1 . . . . 1 . . . . . . . . 1 . . . . 1 . . . 1 . Garrison Access 16 | . . . . . . 3 . . . . 2 . . . . . . . . . . . . 1 1 . 1 . . . . 2 . . 3 3 . Total Hacks 656 | . 25 5 5 . 34 59 . . . . 15 . 17 . 1 27 . 20 . 51 33 1 . 31 21 . 54 . . 17 . 46 41 . 64 89 . Successful 437 | . 14 4 5 . 26 34 . . . . 10 . 12 . 1 27 . 15 . 34 24 1 . 11 16 . 33 . . 17 . 29 35 . 40 49 . Failed 219 | . 11 1 . . 8 25 . . . . 5 . 5 . . . . 5 . 17 9 . . 20 5 . 21 . . . . 17 6 . 24 40 . Catastrophic 33 | . . . . . 2 1 . . . . 2 . 1 . . . . . . 2 . . . 2 1 . 3 . . . . 4 1 . 7 7 . Database Lockouts . | . . . . . . . . . . . . . . . . . . . . . . . . . . . . . . . . . . . . . . Manual 340 | . 20 3 1 . 25 22 . . . . 6 . 4 . . . . 7 . 27 17 1 . 18 12 . 30 . . . . 24 26 1 44 52 . Terminals 406 | . 21 5 . . 26 31 . . . . 6 . 4 . . . . 10 . 27 29 1 . 30 10 . 36 . . . . 30 24 . 50 66 . Fabricators 110 | . . . . . . 9 . . . . 3 . 2 . . . . 8 . 18 . . . . 10 . 13 . . . . 9 17 . 11 10 . Repair Stations 44 | . 2 . . . 6 8 . . . . 4 . 8 . . . . . . 6 4 . . . . . . . . . . . . . . 6 . Recycling Units 2 | . 2 . . . . . . . . . . . . . . . . . . . . . . . . . . . . . . . . . . . . Scanalyzers 18 | . . . . . 2 2 . . . . . . 3 . . . . 2 . . . . . . . . 4 . . . . 3 . . . 2 . Garrison Access 26 | . . . . . . 9 . . . . 2 . . . . . . . . . . . . 1 1 . 1 . . . . 4 . . 3 5 . Terminal Hacks 206 | . 4 3 5 . 11 11 . . . . . . . . 1 27 . 4 . 10 18 1 . 6 7 . 16 . . 17 . 13 13 . 17 22 . Record 23 | . . 1 4 . . . . . . . . . . . . 11 . . . . 1 . . . . . . . . 5 . . . . . 1 . Part Schematic 25 | . . . . . 1 . . . . . . . . . . 8 . . . 1 1 . . . 1 . 3 . . 4 . 1 . . 4 1 . Robot Schematic 5 | . . . . . . . . . . . . . . . . 5 . . . . . . . . . . . . . . . . . . . . . Robot Analysis 4 | . . . . . . . . . . . . . . . . . . . . . . . . . . . . . . 4 . . . . . . . Prototype ID Bank 8 | . . . . . . . . . . . . . . . . 3 . . . . . . . . . . . . . 4 . . . . 1 . . Open Door 13 | . . . . . . . . . . . . . . . 1 . . . . 1 6 1 . . . . . . . . . . 1 . . 3 . Level Access Points 3 | . . . . . . . . . . . . . . . . . . . . . . . . 1 . . . . . . . . 1 . 1 . . Branch Access Points 9 | . . . . . 1 1 . . . . . . . . . . . 1 . 1 . . . . 1 . 1 . . . . 1 . . 1 1 . Emergency Access Points 1 | . . . . . . . . . . . . . . . . . . . . . . . . . . . . . . . . . 1 . . . . Machine Index 5 | . . . . . . 1 . . . . . . . . . . . 1 . . . . . . . . . . . . . . 1 . 1 1 . Terminal Index 7 | . . . . . . 1 . . . . . . . . . . . . . 1 1 . . . 1 . 1 . . . . 1 1 . . . . Fabricator Index 3 | . . . . . . 1 . . . . . . . . . . . . . . . . . . 1 . 1 . . . . . . . . . . Scanalyzer Index 1 | . . . . . . 1 . . . . . . . . . . . . . . . . . . . . . . . . . . . . . . . Garrison Index 2 | . . . . . . 1 . . . . . . . . . . . . . . . . . . . . . . . . . . . . 1 . . Alert Level 30 | . 3 1 . . 3 2 . . . . . . . . . . . . . 2 2 . . 1 1 . 2 . . . . 2 1 . 4 6 . Unreport Threat 43 | . . . . . 3 1 . . . . . . . . . . . 1 . 4 3 . . 2 2 . 6 . . . . 7 5 . 4 5 . Locate Traps 3 | . . . . . . . . . . . . . . . . . . . . . 1 . . . . . . . . . . . 1 . . 1 . Patrol Status 1 | . . . . . . . . . . . . . . . . . . . . . . . . . . . 1 . . . . . . . . . . Recall Extermination 2 | . . . . . . . . . . . . . . . . . . . . . . . . . . . . . . . . 1 . . . 1 . Recall Assault 1 | . . . . . . . . . . . . . . . . . . . . . . . . . . . . . . . . . . . . 1 . Hauler Manifests 2 | . . . . . . . . . . . . . . . . . . . . . 1 . . . . . . . . . . . 1 . . . . Zone Layout 14 | . 1 1 . . 3 2 . . . . . . . . . . . 1 . . 2 . . 2 . . 1 . . . . . . . . 1 . EX-Prototype ID Bank 1 | . . . 1 . . . . . . . . . . . . . . . . . . . . . . . . . . . . . . . . . . Fabricator Hacks 59 | . . . . . . 4 . . . . 3 . 2 . . . . 4 . 10 . . . . 4 . 5 . . . . 5 10 . 7 5 . Network Status 1 | . . . . . . . . . . . . . . . . . . . . . . . . . . . 1 . . . . . . . . . . Load Schematic 25 | . . . . . . 2 . . . . 1 . 1 . . . . 1 . 5 . . . . 2 . 2 . . . . 2 4 . 3 2 . Build 33 | . . . . . . 2 . . . . 2 . 1 . . . . 3 . 5 . . . . 2 . 2 . . . . 3 6 . 4 3 . Repair Station Hacks 35 | . 2 . . . 6 7 . . . . 2 . 6 . . . . . . 6 2 . . . . . . . . . . . . . . 4 . Scan Component 19 | . 1 . . . 3 4 . . . . 2 . 3 . . . . . . 3 1 . . . . . . . . . . . . . . 2 . Repair 16 | . 1 . . . 3 3 . . . . . . 3 . . . . . . 3 1 . . . . . . . . . . . . . . 2 . Recycling Unit Hacks . | . . . . . . . . . . . . . . . . . . . . . . . . . . . . . . . . . . . . . . Scanalyzer 16 | . . . . . 2 2 . . . . . . 3 . . . . 2 . . . . . . . . 3 . . . . 3 . . . 1 . Insert Component 9 | . . . . . 1 1 . . . . . . 2 . . . . 2 . . . . . . . . 1 . . . . 1 . . . 1 . Analyze 7 | . . . . . 1 1 . . . . . . 1 . . . . . . . . . . . . . 2 . . . . 2 . . . . . Garrison Access Hacks 15 | . . . . . . 2 . . . . 2 . . . . . . . . . . . . 1 1 . 1 . . . . 2 . . 3 3 . Seal Access 15 | . . . . . . 2 . . . . 2 . . . . . . . . . . . . 1 1 . 1 . . . . 2 . . 3 3 . Unauthorized Hacks 106 | . 8 1 . . 7 8 . . . . 3 . 1 . . . . 5 . 8 4 . . 4 4 . 8 . . . . 6 12 . 13 14 . Terminals 72 | . 6 1 . . 7 8 . . . . 3 . 1 . . . . 2 . 3 4 . . 4 1 . 4 . . . . 3 5 . 11 9 . Track 1 | . . . . . . . . . . . . . . . . . . . . . . . . . . . . . . . . . 1 . . . . Assimilate 9 | . . . . . . 1 . . . . 1 . . . . . . 1 . 1 . . . . . . 2 . . . . 1 1 . 1 . . Botnet 58 | . 6 1 . . 7 7 . . . . 2 . 1 . . . . 1 . 2 4 . . 3 1 . 2 . . . . 2 2 . 8 9 . Detonate 1 | . . . . . . . . . . . . . . . . . . . . . . . . 1 . . . . . . . . . . . . . Disrupt 1 | . . . . . . . . . . . . . . . . . . . . . . . . . . . . . . . . . . . 1 . . Operators 2 | . . . . . . . . . . . . . . . . . . . . . . . . . . . . . . . . . 1 . 1 . . Fabricators 32 | . . . . . . . . . . . . . . . . . . 3 . 5 . . . . 3 . 4 . . . . 3 7 . 2 5 . Report 6 | . . . . . . . . . . . . . . . . . . 1 . 1 . . . . . . . . . . . 1 2 . . 1 . Prioritize 14 | . . . . . . . . . . . . . . . . . . 1 . 2 . . . . 2 . 2 . . . . 1 3 . 1 2 . Siphon 12 | . . . . . . . . . . . . . . . . . . 1 . 2 . . . . 1 . 2 . . . . 1 2 . 1 2 . Repair Stations . | . . . . . . . . . . . . . . . . . . . . . . . . . . . . . . . . . . . . . . Recycling Units 2 | . 2 . . . . . . . . . . . . . . . . . . . . . . . . . . . . . . . . . . . . Tunnel 2 | . 2 . . . . . . . . . . . . . . . . . . . . . . . . . . . . . . . . . . . . Scanalyzers . | . . . . . . . . . . . . . . . . . . . . . . . . . . . . . . . . . . . . . . Garrison Access . | . . . . . . . . . . . . . . . . . . . . . . . . . . . . . . . . . . . . . . Data Cores Recovered 4 | . . . . . 1 . . . . . . . . . . . . . . . . . . 1 . . . . . . . . . . . 2 . Used 1 | . . . . . . . . . . . . . . . . . . . . . . . . . . . . . . . . . . . . 1 . Hacking Detections 127 | . 7 1 . . 9 18 . . . . 5 . 5 . . . . 4 . 8 6 . . 9 4 . 8 . . . . 9 6 . 12 16 . Full Trace Events 12 | . . . . . . 3 . . . . 1 . . . . . . . . 1 . . . 1 . . 1 . . . . . . . 2 3 . Feedback Events 2 | . . . . . . . . . . . . . . . . . . . . . . . . 1 . . . . . . . . . . 1 . . Hackware Fried 2 | . . . . . . . . . . . . . . . . . . . . . . . . 1 . . . . . . . . . . 1 . . Feedback Blocked . | . . . . . . . . . . . . . . . . . . . . . . . . . . . . . . . . . . . . . . Robot Schematics Acquired 5 | . . . . . . . . . . . . . . . . 5 . . . . . . . . . . . . . . . . . . . . . Robots Built . | . . . . . . . . . . . . . . . . . . . . . . . . . . . . . . . . . . . . . . Matter . | . . . . . . . . . . . . . . . . . . . . . . . . . . . . . . . . . . . . . . Time . | . . . . . . . . . . . . . . . . . . . . . . . . . . . . . . . . . . . . . . Total Robot Build Rating . | . . . . . . . . . . . . . . . . . . . . . . . . . . . . . . . . . . . . . . Part Schematics Acquired 30 | . . . . . 2 1 . . . . . . 1 . . 8 . . . 1 1 . . . 1 . 4 . . 4 . 2 . . 4 1 . Parts Built 47 | . . . . . . 4 . . . . 4 . 2 . . . . 6 . 5 . . . . 4 . 3 . . . . 5 9 . 3 2 . Matter 7743 | . . . . . . 336 . . . . 336 . 168 . . . . 420 . 994 . . . . 402 . 552 . . . . 702 1664 . 1113 1056 . Time 2183 | . . . . . . 56 . . . . 84 . 42 . . . . 168 . 420 . . . . 137 . 130 . . . . 154 588 . 234 170 . Total Part Build Rating 283 | . . . . . . 16 . . . . 16 . 8 . . . . 24 . 35 . . . . 22 . 16 . . . . 32 72 . 26 16 . Parts Repaired 16 | . 1 . . . 3 3 . . . . . . 3 . . . . . . 3 1 . . . . . . . . . . . . . . 2 . Time 561 | . 26 . . . 84 107 . . . . . . 162 . . . . . . 122 22 . . . . . . . . . . . . . . 38 . Parts Recycled . | . . . . . . . . . . . . . . . . . . . . . . . . . . . . . . . . . . . . . . Recycled Matter . | . . . . . . . . . . . . . . . . . . . . . . . . . . . . . . . . . . . . . . Retrieved Matter . | . . . . . . . . . . . . . . . . . . . . . . . . . . . . . . . . . . . . . . Retrieved Components . | . . . . . . . . . . . . . . . . . . . . . . . . . . . . . . . . . . . . . . Parts Scanalyzed 5 | . . . . . 1 1 . . . . . . 1 . . . . . . . . . . . . . 1 . . . . 1 . . . . . Part Schematics Acquired 5 | . . . . . 1 1 . . . . . . 1 . . . . . . . . . . . . . 1 . . . . 1 . . . . . Parts Damaged . | . . . . . . . . . . . . . . . . . . . . . . . . . . . . . . . . . . . . . . Bothacking | -11 -10 -10 -10 -9 -8 -7 -7 -7 -7 -6 -6 -6 -6 -6 -6 -6 -5 -5 -5 -5 -5 -5 -5 -5 -4 -4 -4 -4 -4 -4 -3 -3 -3 -3 -2 -1 -1 ------------ Run | Scr Mat Min Exi Min Mat Fac Low Low Zio Pro Fac Was Fac Low Low Dat Pro Fac Was Fac Ext Cet Arc Hub Fac Was Fac Upp Upp Zhi Pro Res Arm Lab Res Acc Com Used RIF Installer . | . . . . . . . . . . . . . . . . . . . . . . . . . . . . . . . . . . . . . . Robots Hacked 2 | . . . . . . . . . . . 1 . . . . . . 1 . . . . . . . . . . . . . . . . . . . Non-combat 2 | . . . . . . . . . . . 1 . . . . . . 1 . . . . . . . . . . . . . . . . . . . Combat . | . . . . . . . . . . . . . . . . . . . . . . . . . . . . . . . . . . . . . . Robot Hacks Applied 2 | . . . . . . . . . . . 1 . . . . . . 1 . . . . . . . . . . . . . . . . . . . find_chute 2 | . . . . . . . . . . . 1 . . . . . . 1 . . . . . . . . . . . . . . . . . . . Relay Couplers Released 9 | . . . . . . 1 . . . . . . . . . . . . . . . . . 2 . . . . . . . . . . 2 4 . Machine Destruction 5 | . . . . . . 1 . . . . . . . . . . . . . . . . . 2 . . . . . . . . . . 2 . . Programmers 4 | . . . . . . . . . . . . . . . . . . . . . . . . . . . . . . . . . . . . 4 . Robots Rewired 17 | . . . . . . . . . . . . . . . . . 2 5 . . 8 . . . . . . . . . . . 2 . . . . Allies Hacked 2 | . . . . . . . . . . . . . . . . . . . . . . . . . . . 1 . . . . . 1 . . . . Hacks Repelled 2 | . . . . . . . . . . . . . . . . . . 1 . 1 . . . . . . . . . . . . . . . . . Allies | -11 -10 -10 -10 -9 -8 -7 -7 -7 -7 -6 -6 -6 -6 -6 -6 -6 -5 -5 -5 -5 -5 -5 -5 -5 -4 -4 -4 -4 -4 -4 -3 -3 -3 -3 -2 -1 -1 -------- Run | Scr Mat Min Exi Min Mat Fac Low Low Zio Pro Fac Was Fac Low Low Dat Pro Fac Was Fac Ext Cet Arc Hub Fac Was Fac Upp Upp Zhi Pro Res Arm Lab Res Acc Com Total Allies 81 | . . . . . . 1 . . . . . 19 . . . . 2 6 . 4 17 5 . . . 20 2 . . . . 1 3 . 1 . . Largest Group 20 | . . . . . . 1 . . . . . 19 19 . . . 2 6 6 5 17 14 9 6 . 20 20 . . . . 1 1 . 1 . . Highest-Rated Group 852 | . . . . . . 10 . . . . . 714 714 . . . 59 248 248 196 625 852 725 512 . 760 760 . . . . 44 65 . 26 . . Highest-Rated Ally 156 | . . . . . . 10 . . . . . 50 50 . . . 30 65 65 65 156 156 156 95 . 50 50 . . . . 44 65 . 26 . . Total Orders 12 | . . . . . . . . . . . . . . . . . . . . . . 4 . . . . . . . . . 2 2 . 4 . . STAY 7 | . . . . . . . . . . . . . . . . . . . . . . 2 . . . . . . . . . 1 2 . 2 . . FOLLOW 5 | . . . . . . . . . . . . . . . . . . . . . . 2 . . . . . . . . . 1 . . 2 . . Ally Attacks 648 | . . . . . . . . . . . . . 113 . . . 17 5 29 26 108 48 28 77 . 16 180 . . . . . 1 . . . . Total Damage 16872 | . . . . . . . . . . . . . 3154 . . . 332 71 802 486 2347 863 892 2478 . 396 5023 . . . . . 28 . . . . Kills 118 | . . . . . . . . . . . . . 24 . . . . 3 2 4 20 7 4 24 . 1 29 . . . . . . . . . . Allies Corrupted 6 | . . . . . . . . . . . . . 4 . . . . . . . . . . . . . 1 . . . . . 1 . . . . Allies Melted . | . . . . . . . . . . . . . . . . . . . . . . . . . . . . . . . . . . . . . . Intel | -11 -10 -10 -10 -9 -8 -7 -7 -7 -7 -6 -6 -6 -6 -6 -6 -6 -5 -5 -5 -5 -5 -5 -5 -5 -4 -4 -4 -4 -4 -4 -3 -3 -3 -3 -2 -1 -1 ------- Run | Scr Mat Min Exi Min Mat Fac Low Low Zio Pro Fac Was Fac Low Low Dat Pro Fac Was Fac Ext Cet Arc Hub Fac Was Fac Upp Upp Zhi Pro Res Arm Lab Res Acc Com Robot Analysis Total 4 | . . . . . . . . . . . . . . . . . . . . . . . . . . . . . . 4 . . . . . . . Derelict Logs Recovered 12 | . . 2 . 1 . . 2 2 . 1 . . . . 1 . 2 . . . . . . . . . . 1 . . . . . . . . . Drone Launches . | . . . . . . . . . . . . . . . . . . . . . . . . . . . . . . . . . . . . . . Drone Recoveries . | . . . . . . . . . . . . . . . . . . . . . . . . . . . . . . . . . . . . . . Exploration | -11 -10 -10 -10 -9 -8 -7 -7 -7 -7 -6 -6 -6 -6 -6 -6 -6 -5 -5 -5 -5 -5 -5 -5 -5 -4 -4 -4 -4 -4 -4 -3 -3 -3 -3 -2 -1 -1 ------------- Run | Scr Mat Min Exi Min Mat Fac Low Low Zio Pro Fac Was Fac Low Low Dat Pro Fac Was Fac Ext Cet Arc Hub Fac Was Fac Upp Upp Zhi Pro Res Arm Lab Res Acc Com Turns Passed 51026 | 79 1369 719 551 339 3610 5864 389 657 2353 754 1362 1048 2415 595 635 311 970 1148 284 2469 1433 393 105 954 711 648 1382 468 404 277 409 2875 2516 34 3261 5925 1310 Spaces Moved 20014 | 48 647 414 344 204 1138 1991 242 239 902 272 451 406 1142 343 370 110 429 480 133 931 668 156 43 458 308 275 638 238 243 155 220 964 922 18 1260 1939 273 Core 54 | 9 . . . . . . . . . . . . . . . . . . . . . . . . . . . . . . . . . . . . 45 Treads 19945 | 39 647 414 344 204 1138 1991 242 239 902 272 451 406 1142 343 370 110 429 480 133 931 668 156 43 458 308 275 638 238 243 155 220 964 922 18 1260 1939 213 Legs . | . . . . . . . . . . . . . . . . . . . . . . . . . . . . . . . . . . . . . . Wheels . | . . . . . . . . . . . . . . . . . . . . . . . . . . . . . . . . . . . . . . Hover . | . . . . . . . . . . . . . . . . . . . . . . . . . . . . . . . . . . . . . . Flight 15 | . . . . . . . . . . . . . . . . . . . . . . . . . . . . . . . . . . . . . 15 Fastest Speed 35 | 50 160 160 160 160 250 160 160 160 260 260 160 160 160 160 160 160 160 160 160 160 180 170 170 170 170 170 160 160 160 160 160 160 160 160 160 160 35 Average Speed 187 | 143 160 160 160 160 257 236 160 196 260 260 258 167 160 160 160 160 160 160 160 163 180 174 170 170 170 170 165 160 160 160 160 160 160 160 160 197 213 Slowest Speed 290 | 160 160 160 160 160 260 262 160 260 260 260 260 267 160 160 160 160 160 160 260 180 180 290 170 170 170 170 170 160 160 160 160 160 160 160 160 260 260 Overloaded Moves . | . . . . . . . . . . . . . . . . . . . . . . . . . . . . . . . . . . . . . . Propulsion Burnouts . | . . . . . . . . . . . . . . . . . . . . . . . . . . . . . . . . . . . . . . Robots Hopped 2 | . . . . . . . 1 . . . . . . . . . . . . . . . . . . . . . . . . . . . . . 1 Cave-ins Triggered . | . . . . . . . . . . . . . . . . . . . . . . . . . . . . . . . . . . . . . . Teleports 1 | . . . . . . . . . . . . . . . . . . . . . . . . . . . . . . . . . . . . 1 . Exploration Rate (%) 51 | 4 95 95 69 60 85 45 48 41 87 48 19 95 36 52 58 77 74 18 94 24 80 65 65 59 8 87 23 35 44 60 39 33 55 15 35 34 12 Regions Visited 37 Branch Regions 22 Pre-discovered Areas 10 | . 2 1 1 1 . . 1 . . . . . . . . 1 . . . . . . . . . . . . . 3 . . . . . . . Known Exits Taken 13 | . . . . . . 1 . . . . . . 1 . . . . . . 1 . . . 1 . . 1 1 1 1 1 1 . 1 1 1 . Unknown Exits Taken 18 | 1 1 1 1 1 1 . 1 1 1 1 . . . 1 1 1 1 . . . 1 1 1 . . . . . . . . . 1 . . . . Scrap Searched 15 | . . 1 . 2 . . 1 1 3 1 . . . . 1 . 4 . . . . . . . . . . . 1 . . . . . . . . Spaces Dug 124 | . . . . . . 4 . . . . 3 . . . . . . 8 . 11 . . . . . . 5 11 4 . 9 13 7 . 31 13 5 Terrain Destroyed 680 | . . . . . . 88 . . . 28 19 . . . . 12 . 33 . 40 . . . 164 . . 5 11 4 . 10 26 22 . 59 62 97 Melee 78 | . . . . . . . . . . . . . . . . . . 3 . 2 . . . . . . 5 11 4 . . 13 3 . 27 10 . Projectile 66 | . . . . . . 5 . . . . 3 . . . . . . 6 . 10 . . . . . . . . . . 10 13 7 . 4 3 5 AOE 536 | . . . . . . 83 . . . 28 16 . . . . 12 . 24 . 28 . . . 164 . . . . . . . . 12 . 28 49 92 Terrain Rammed . | . . . . . . . . . . . . . . . . . . . . . . . . . . . . . . . . . . . . . . Walls Destroyed . | . . . . . . . . . . . . . . . . . . . . . . . . . . . . . . . . . . . . . . Machines Disabled . | . . . . . . . . . . . . . . . . . . . . . . . . . . . . . . . . . . . . . . Actions | -11 -10 -10 -10 -9 -8 -7 -7 -7 -7 -6 -6 -6 -6 -6 -6 -6 -5 -5 -5 -5 -5 -5 -5 -5 -4 -4 -4 -4 -4 -4 -3 -3 -3 -3 -2 -1 -1 --------- Run | Scr Mat Min Exi Min Mat Fac Low Low Zio Pro Fac Was Fac Low Low Dat Pro Fac Was Fac Ext Cet Arc Hub Fac Was Fac Upp Upp Zhi Pro Res Arm Lab Res Acc Com Total 30616 | 55 826 445 345 209 1592 2906 243 368 911 293 626 736 1665 374 388 216 638 777 172 1697 868 271 67 595 473 429 937 294 249 182 261 2032 1740 23 2269 3614 830 Wait 7772 | . 67 13 . . 250 651 2 94 1 2 137 265 444 26 5 67 146 222 7 640 135 99 20 95 131 126 261 31 1 . 22 818 561 5 804 1273 351 Move 19976 | 47 646 413 343 203 1137 1990 239 238 901 271 451 405 1141 342 369 109 428 480 132 930 667 155 42 457 308 274 637 237 242 154 219 963 921 17 1259 1938 271 Hop 2 | . . . . . . . 1 . . . . . . . . . . . . . . . . . . . . . . . . . . . . . 1 Pick Up 228 | 2 13 1 2 1 36 28 1 4 1 1 7 16 12 . 2 7 2 7 2 8 . 2 . 3 5 1 2 1 . 3 1 19 13 . 5 12 8 Fast Attach 131 | 6 2 . . . 5 9 . . 3 . . 6 8 . . . 3 2 5 7 4 3 1 5 3 4 4 . . 8 . 4 17 . 3 11 8 Attach 105 | . 1 1 . 1 8 8 . 1 . 3 2 10 3 . 2 6 8 4 . 1 . 1 . 1 3 . . . . . . 6 3 . 2 12 18 Detach 7 | . . . . . . . . . . . . 1 . . . 1 4 . . . . 1 . . . . . . . . . . . . . . . Swap 368 | . 7 . . . 25 34 . 1 1 2 9 2 6 . . 7 2 12 4 6 . . . 2 6 3 6 6 . 6 2 39 50 1 39 78 12 Drop 260 | . 8 . . . 27 37 . 3 4 1 4 13 16 . . 4 3 1 9 12 3 5 . 6 4 5 9 1 . 10 1 19 31 . 8 8 8 Fire 1504 | . 77 11 . 4 97 136 . 27 . 13 15 18 25 6 10 13 34 44 13 85 14 5 4 23 7 16 11 2 . . 16 137 136 . 103 249 153 Melee 137 | . . . . . . . . . . . . . . . . 2 . 4 . 2 . . . . 6 . 7 16 6 1 . 25 5 . 43 20 . Ram 3 | . . . . . . . . . . . . . . . . . . . . 1 1 . . 1 . . . . . . . . . . . . . Kick . | . . . . . . . . . . . . . . . . . . . . . . . . . . . . . . . . . . . . . . Crush 68 | . 5 6 . . 7 13 . . . . 1 . 5 . . . . 1 . 5 5 . . 2 . . . . . . . 2 . . 3 13 . Escape Stasis 5 | . . . . . . . . . . . . . 5 . . . . . . . . . . . . . . . . . . . . . . . . Rewire 50 | . . . . . . . . . . . . . . . . . 8 . . . 39 . . . . . . . . . . . 3 . . . . Trap . | . . . . . . . . . . . . . . . . . . . . . . . . . . . . . . . . . . . . . . Miscellaneous . | . . . . . . . . . . . . . . . . . . . . . . . . . . . . . . . . . . . . . . Route ------- -11/Scrapyard -10/Materials (discovered 4 exits: [*Mat x3] / *Min) -10/Mines (discovered 3 exits: [*Mat x2] / *Exi) -10/Exiles -9/Mines -8/Materials (discovered 3 exits: *Fac x3) -7/Factory (discovered 4 exits: *Fac x2 / *Low x2) -7/Lower Caves -7/Lower Caves -7/Zion -6/Proximity Caves -6/Factory -6/Waste -6/Factory (discovered 3 exits: *Fac / *Low x2) -6/Lower Caves -6/Lower Caves -6/Data Miner -5/Proximity Caves -5/Factory (discovered 5 exits: Fac / Upp x2 / Ext x2) -5/Waste -5/Factory (discovered 5 exits: *Fac / Upp x2 / *Ext x2) -5/Extension (discovered 2 exits: *Fac / *Cet) -5/Cetus -5/Archives -5/Hub_04(d) (discovered 4 exits: *Fac x4) -4/Factory (discovered 2 exits: Upp x2) -4/Waste -4/Factory (discovered 3 exits: *Res / *Upp x2) -4/Upper Caves -4/Upper Caves -4/Zhirov -3/Proximity Caves -3/Research (discovered 5 exits: *Res x2 / *Arm / *Tes x2) -3/Armory (discovered 3 exits: Res x2 / *Lab) -3/Lab -2/Research (discovered 5 exits: *Acc x3 / Qua x2) -1/Access -1/Command History --------- Turn | Location | Event 5 | -11/Scrapyard | Discovered new exit (range 15) 80 | -11/Scrapyard | Entered Materials 140 | -10/Materials | Discovered new exit (range 8) 273 | -10/Materials | Discovered new exit (range 10) 316 | -10/Materials | Build established: Mutant 583 | -10/Materials | Repaired Lgt. Treads 608 | -10/Materials | Discovered new exit (range 8) 943 | -10/Materials | Discovered new exit (range 4) 988 | -10/Materials | Core integrity fell below 50% 1449 | -10/Materials | Entered Mines 1569 | -10/Mines | Learned location of Storage (-9) 1589 | -10/Mines | Learned Materials stockpile data 1662 | -10/Mines | Discovered new exit (range 3) 1750 | -10/Mines | Discovered new exit (range 4) 2043 | -10/Mines | Discovered new exit (range 13) 2161 | -10/Mines | Deemed a non-threat by the Exiles lab entrance 2168 | -10/Mines | Entered Exiles 2207 | -10/Exiles | Met 8R-AWN 2231 | -10/Exiles | Met EX-HEX 2315 | -10/Exiles | Met EX-DEC 2352 | -10/Exiles | Learned location of Zion (-7) 2491 | -10/Exiles | Met EX-BIN 2515 | -10/Exiles | Aligned with FarCom system 2517 | -10/Exiles | Given EX-Vault access code 2557 | -10/Exiles | Opened EX-Vault 2565 | -10/Exiles | Found Modified TNC 2599 | -10/Exiles | Warned to stay clear of 0b10 Research branches 2706 | -10/Exiles | Discovered new exit (range 10) 2719 | -10/Exiles | Left Exiles lab with Modified TNC 2719 | -10/Exiles | Entered Mines 2876 | -9/Mines | Learned 2 Materials zone layouts 3015 | -9/Mines | Discovered new exit (range 14) 3058 | -9/Mines | Entered Materials 3058 | -8/Materials | Evolved 4 slots: Propulsion x1, Utility x2, Weapon x1 3352 | -8/Materials | Build established: Tank 3925 | -8/Materials | Build established: Skirmisher 3956 | -8/Materials | Discovered new exit (range 4) 4445 | -8/Materials | Destroyed 7 combat bots 4502 | -8/Materials | Discovered new exit (range 15) 4850 | -8/Materials | Repaired Imp. Treads 4877 | -8/Materials | Repaired Lgt. Armor Plating 4905 | -8/Materials | Repaired Lgt. Armor Plating 5283 | -8/Materials | Build established: Tank 6521 | -8/Materials | Discovered new exit (range 8) 6668 | -8/Materials | Entered Factory 6668 | -7/Factory | Evolved 2 slots: Propulsion x1, Utility x1 7935 | -7/Factory | Discovered new exit (range 15) 8014 | -7/Factory | Identified exit to Lower Caves 8826 | -7/Factory | Build established: Skirmisher 9909 | -7/Factory | Garrison activated, responded to threat 10443 | -7/Factory | Fabricated Flak Gun (x2) 10482 | -7/Factory | Fabricated Flak Gun (x2) 11040 | -7/Factory | Discovered new exit (range 9) 11178 | -7/Factory | Repaired Adv. Treads 11468 | -7/Factory | First assault squad dispatched 11886 | -7/Factory | Found Prototype Launcher 11886 | -7/Factory | Identified Rocket Array 12053 | -7/Factory | Lost 4 parts (1p1u2w) 12128 | -7/Factory | Garrison activated, responded to threat 12225 | -7/Factory | Discovered new exit (range 4) 12285 | -7/Factory | Repaired Flak Gun 12331 | -7/Factory | Repaired Med. Treads 12532 | -7/Factory | Entered Lower Caves 12533 | -7/Lower Caves | Encountered a Warlord checkpoint 12734 | -7/Lower Caves | Learned Factory trap positions 12825 | -7/Lower Caves | Build established: Gunner 12910 | -7/Lower Caves | Discovered new exit (range 7) 12921 | -7/Lower Caves | Entered another Lower Caves area 12933 | -7/Lower Caves | Learned 4 Factory zone layouts 13198 | -7/Lower Caves | Spotted B-75 Beast 13216 | -7/Lower Caves | Destroyed B-75 Beast 13230 | -7/Lower Caves | Learned Factory emergency access door positions 13319 | -7/Lower Caves | Discovered new exit (range 5) 13515 | -7/Lower Caves | Build established: Tank 13578 | -7/Lower Caves | Entered Zion 13663 | -7/Zion | Discovered new exit (range 13) 13731 | -7/Zion | System corruption cleaned by Quarantine Array 13885 | -7/Zion | Build established: Mutant 14247 | -7/Zion | Build established: Tank 14261 | -7/Zion | Found CR-A16's Pointy Stick 15353 | -7/Zion | Rebuked by Imprinter 15931 | -7/Zion | Entered Proximity Caves 16633 | -6/Proximity Caves | Discovered new exit (range 7) 16685 | -6/Proximity Caves | Entered Factory 16685 | -6/Factory | Evolved 2 slots: Utility x1, Weapon x1 16687 | -6/Factory | Loaded intel: 93 trap records 16787 | -6/Factory | Spotted B-75 Beast 17016 | -6/Factory | Fabricated Flak Gun (x2) 17062 | -6/Factory | Fabricated Flak Gun (x2) 17087 | -6/Factory | Build established: Hacker-Skirmisher 17908 | -6/Factory | Discovered new exit (range 8) 17937 | -6/Factory | Garrison activated, responded to threat 18047 | -6/Factory | Sucked down chute 18047 | -6/Factory | Entered Waste 18101 | -6/Waste | Spotted C-40 Crusher 18108 | -6/Waste | Destroyed C-40 Crusher 18117 | -6/Waste | Spotted C-40 Crusher 18127 | -6/Waste | Destroyed C-40 Crusher 18138 | -6/Waste | Crushed by Compactor (1 part destroyed, 1 dropped) 18141 | -6/Waste | Destroyed C-40 Crusher 18146 | -6/Waste | Crushed by Compactor (1 part destroyed, 2 dropped) 18149 | -6/Waste | Crushed by Compactor (1 part destroyed, 1 dropped) 18152 | -6/Waste | Crushed by Compactor (1 part destroyed, 1 dropped) 18153 | -6/Waste | Destroyed C-40 Crusher 18183 | -6/Waste | Lost 6 parts (1p1n1u3w) 18189 | -6/Waste | Found Damper Plating 18299 | -6/Waste | Crushed by Compactor (1 part destroyed, 1 dropped) 18300 | -6/Waste | Destroyed C-40 Crusher 18338 | -6/Waste | Destroyed C-40 Crusher 18363 | -6/Waste | Found Damper Plating 18608 | -6/Waste | Discovered new exit (range 16) 18636 | -6/Waste | Warlord forces began an assault 18716 | -6/Waste | Build established: Scavenger-Skirmisher 19095 | -6/Waste | Entered Factory 19095 | -6/Factory | Accompanied by 19 allies 19208 | -6/Factory | Discovered new exit (range 10) 19232 | -6/Factory | Identified exit to Lower Caves 20526 | -6/Factory | Found Prototype Processor 20526 | -6/Factory | Identified Exp. Targeting Computer 20532 | -6/Factory | Found Exp. Targeting Computer 20548 | -6/Factory | Found Exp. Targeting Computer 20810 | -6/Factory | Repaired Hvy. Siege Treads 20870 | -6/Factory | Repaired Hvy. Treads 20991 | -6/Factory | Discovered new exit (range 16) 21230 | -6/Factory | Repaired Flak Gun 21301 | -6/Factory | Fabricated Flak Gun? 21457 | -6/Factory | Discovered exit to Lower Caves (range 11) 21510 | -6/Factory | Entered Lower Caves 21517 | -6/Lower Caves | Attracted the attention of an 0b10 checkpoint 21748 | -6/Lower Caves | Encountered a Warlord checkpoint 21805 | -6/Lower Caves | Build established: Scavenger-Gunner 22089 | -6/Lower Caves | Discovered new exit (range 9) 22105 | -6/Lower Caves | Entered another Lower Caves area 22107 | -6/Lower Caves | Attracted the attention of an 0b10 checkpoint 22155 | -6/Lower Caves | Destroyed 7 combat bots 22722 | -6/Lower Caves | Discovered new exit (range 10) 22740 | -6/Lower Caves | Entered Data Miner 22746 | -6/Data Miner | Discovered new exit (range 6) 22777 | -6/Data Miner | Met Data Miner 22809 | -6/Data Miner | Learned location of Section 7 (-2) 22809 | -6/Data Miner | Acquired the access code to Warlord's prototype stash 22831 | -6/Data Miner | Received God Mode back door access code from Data Miner 22855 | -6/Data Miner | Destroyed Data Miner 22859 | -6/Data Miner | Data Conduit disabled 22863 | -6/Data Miner | Found Prototype Hackware 22866 | -6/Data Miner | Found Prototype Hackware 22870 | -6/Data Miner | Found Prototype Hackware 23051 | -6/Data Miner | Entered Proximity Caves 23085 | -5/Proximity Caves | Attracted the attention of an 0b10 outpost 23159 | -5/Proximity Caves | Destroyed 9 combat bots 23387 | -5/Proximity Caves | Build established: Scavenger-Tank 23509 | -5/Proximity Caves | Learned 8 Factory zone layouts 23613 | -5/Proximity Caves | Learned Factory emergency access door positions 23759 | -5/Proximity Caves | Received a Behemoth hack from an annoying Tinkerer 24013 | -5/Proximity Caves | Discovered new exit (range 6) 24021 | -5/Proximity Caves | Entered Factory 24021 | -5/Factory | Evolved 2 slots: Utility x2 24021 | -5/Factory | Identified System Mapper 24022 | -5/Factory | Identified exit to Extension 24023 | -5/Factory | Identified exit to Factory 24044 | -5/Factory | Identified Deep Network Scanner 24044 | -5/Factory | Identified Ghost Barrier 24136 | -5/Factory | Fabricated Flak Gun (x2) 24186 | -5/Factory | Fabricated Flak Gun (x2) 24233 | -5/Factory | Fabricated Flak Gun (x2) 24386 | -5/Factory | Build established: Hacker-Gunner 24518 | -5/Factory | Local fabrication network quarantined 24842 | -5/Factory | Identified exit to Upper Caves 24936 | -5/Factory | Garrison activated, responded to threat 25169 | -5/Factory | Sucked down chute 25169 | -5/Factory | Entered Waste 25184 | -5/Waste | EMP discharged 25184 | -5/Waste | System corruption reached 10% 25224 | -5/Waste | Spotted C-40 Crusher 25230 | -5/Waste | Destroyed C-40 Crusher 25240 | -5/Waste | Spotted C-40 Crusher 25245 | -5/Waste | 6 allies followed down the chute 25245 | -5/Waste | Destroyed C-40 Crusher 25266 | -5/Waste | Spotted C-40 Crusher 25271 | -5/Waste | Destroyed C-40 Crusher 25275 | -5/Waste | Spotted C-40 Crusher 25284 | -5/Waste | EMP discharged 25292 | -5/Waste | Allies destroyed C-40 Crusher 25315 | -5/Waste | Spotted C-40 Crusher 25328 | -5/Waste | Destroyed C-40 Crusher 25354 | -5/Waste | Allies destroyed C-40 Crusher 25384 | -5/Waste | EMP discharged 25384 | -5/Waste | System corruption reached 30% 25435 | -5/Waste | Discovered new exit (range 10) 25453 | -5/Waste | Entered Factory 25453 | -5/Factory | Accompanied by 5 allies 25817 | -5/Factory | Repaired Flak Gun 25977 | -5/Factory | Cargo convoy interrupted 26057 | -5/Factory | Discovered exit to Factory (range 5) 26174 | -5/Factory | P-70 Sage assimilated allied Archangel 6b 26175 | -5/Factory | P-70 Sage assimilated allied Administrator 6b 26741 | -5/Factory | Allied Derelicts emerged from ambush trap array 27345 | -5/Factory | Repaired Hvy. Treads 27390 | -5/Factory | Repaired Flak Gun 27540 | -5/Factory | Fabricated Hvy. Siege Treads (x2) 27653 | -5/Factory | Fabricated Exp. Sensor Array (x1) 27744 | -5/Factory | Fabricated Mni. Smartbomb Launcher? 27791 | -5/Factory | Fabricated Adv. Armor Integrity Analyzer? 27858 | -5/Factory | Local fabrication network quarantined 27922 | -5/Factory | Entered Extension 27922 | -5/Extension | Accompanied by 1 ally 28123 | -5/Extension | Rescued a captive Derelict 28124 | -5/Extension | Rescued a captive Derelict 28240 | -5/Extension | Rescued A7 28686 | -5/Extension | Spotted B-75 Beast 28697 | -5/Extension | Destroyed B-75 Beast 28704 | -5/Extension | Spotted B-75 Beast 28717 | -5/Extension | Allies destroyed B-75 Beast 28800 | -5/Extension | Rescued a captive Derelict 28800 | -5/Extension | Rescued a captive Derelict 28820 | -5/Extension | Rescued a captive Derelict 28856 | -5/Extension | Rescued a captive Derelict 29065 | -5/Extension | Rescued a captive Derelict 29066 | -5/Extension | Rescued a captive Derelict 29264 | -5/Extension | Repaired Flak Gun 29312 | -5/Extension | Discovered exit to Factory (range 10) 29314 | -5/Extension | Discovered new exit (range 6) 29355 | -5/Extension | Entered Cetus 29355 | -5/Cetus | Accompanied by 13 allies (A7) 29360 | -5/Cetus | Acquired a Cetus Manufacturing Module code from A7 29384 | -5/Cetus | Spotted Cetus Guard 29384 | -5/Cetus | Spotted Cetus Guard 29386 | -5/Cetus | Spotted Cetus Guard 29390 | -5/Cetus | Allies destroyed Cetus Guard 29391 | -5/Cetus | Spotted Cetus Guard 29397 | -5/Cetus | Allies destroyed Cetus Guard 29404 | -5/Cetus | Allies destroyed Cetus Guard 29404 | -5/Cetus | Allies destroyed Cetus Guard 29553 | -5/Cetus | Started Cetus Manufacturing Module 29566 | -5/Cetus | Escorted A7 to Cetus Mainframe 29578 | -5/Cetus | Manufactured an Enhanced Grunt 29603 | -5/Cetus | Manufactured an Enhanced Grunt 29628 | -5/Cetus | Manufactured an Enhanced Grunt 29630 | -5/Cetus | Discovered new exit (range 15) 29653 | -5/Cetus | Manufactured an Enhanced Grunt 29678 | -5/Cetus | Manufactured an Enhanced Grunt 29748 | -5/Cetus | Entered Archives 29748 | -5/Archives | Accompanied by 9 allies (A7) 29753 | -5/Archives | Received a hacking code to weaken MAIN.C 29813 | -5/Archives | Discovered new exit (range 16) 29853 | -5/Archives | Entered Hub_04(d) 29853 | -5/Hub_04(d) | Accompanied by 6 allies 30433 | -5/Hub_04(d) | Ghost Barrier fried by hacking feedback 30453 | -5/Hub_04(d) | First assault squad dispatched 30800 | -5/Hub_04(d) | Network Hub disabled 30807 | -5/Hub_04(d) | Entered Factory 30807 | -4/Factory | Evolved 2 slots: Utility x2 30964 | -4/Factory | Identified exit to Upper Caves 31216 | -4/Factory | Fabricated Adv. Weapon Cycler (x2) 31236 | -4/Factory | Spotted B-86 Titan 31311 | -4/Factory | Revealed the true nature of CR-A16's Pointy Stick 31314 | -4/Factory | Destroyed B-86 Titan 31393 | -4/Factory | Fabricated Imp. Weapon Shielding (x2) 31518 | -4/Factory | Sucked down chute 31518 | -4/Factory | Entered Waste 31519 | -4/Waste | Met a frightened Derelict 31540 | -4/Waste | Found Prototype Processor 31540 | -4/Waste | Identified Exp. Core Analyzer 31562 | -4/Waste | Destroyed C-40 Crusher 31579 | -4/Waste | Destroyed C-40 Crusher 31590 | -4/Waste | Spotted C-40 Crusher 31598 | -4/Waste | Destroyed C-40 Crusher 31604 | -4/Waste | Allies destroyed C-40 Crusher 31608 | -4/Waste | Destroyed C-40 Crusher 31643 | -4/Waste | Spotted C-40 Crusher 31653 | -4/Waste | Destroyed C-40 Crusher 31697 | -4/Waste | Warlord forces began an assault 31761 | -4/Waste | Discovered new exit (range 15) 32166 | -4/Waste | Entered Factory 32166 | -4/Factory | Accompanied by 20 allies 32279 | -4/Factory | Fabricated Flak Gun (x2) 32639 | -4/Factory | Garrison activated, responded to threat 32652 | -4/Factory | Garrison activated, responded to threat 32994 | -4/Factory | Fabricated Centrium Heavy Treads (x1) 33110 | -4/Factory | Discovered new exit (range 8) 33149 | -4/Factory | Local fabrication network quarantined 33340 | -4/Factory | Build established: Hacker-Mutant 33548 | -4/Factory | Entered Upper Caves 33603 | -4/Upper Caves | Learned Research non-interactive machine intel 33936 | -4/Upper Caves | Encountered a Warlord checkpoint 34010 | -4/Upper Caves | Discovered new exit (range 5) 34015 | -4/Upper Caves | Identified exit to Upper Caves 34016 | -4/Upper Caves | Entered another Upper Caves area 34093 | -4/Upper Caves | Build established: Hacker-Assassin 34396 | -4/Upper Caves | Discovered new exit (range 11) 34416 | -4/Upper Caves | Identified exit to Zhirov 34420 | -4/Upper Caves | Entered Zhirov 34420 | -4/Zhirov | Discovered new exit (range 3) 34452 | -4/Zhirov | Met Zhirov 34480 | -4/Zhirov | Learned location of Quarantine (-2) 34480 | -4/Zhirov | Learned location of Testing (-3) 34494 | -4/Zhirov | Zhirov requested help retrieving the SGEMP Prototype 34520 | -4/Zhirov | Found Alien Artifact 34520 | -4/Zhirov | Identified Integrated Dissipator 34520 | -4/Zhirov | Installed Integrated Dissipator, increased core heat dissipation (+20) 34544 | -4/Zhirov | Found Alien Artifact 34696 | -4/Zhirov | Identified exit to Proximity Caves 34697 | -4/Zhirov | Entered Proximity Caves 35086 | -3/Proximity Caves | Discovered new exit (range 10) 35099 | -3/Proximity Caves | Identified exit to Research 35106 | -3/Proximity Caves | Entered Research 35106 | -3/Research | Evolved 2 slots: Utility x2 35107 | -3/Research | Loaded intel: 55 non-interactive machine locations 35396 | -3/Research | Build established: Hacker-Gunner 35409 | -3/Research | Spotted B-86 Titan 35545 | -3/Research | Fabricated Centrium Heavy Treads (x1) 35574 | -3/Research | Fabricated Hyp. Coil Gun (x2) 35607 | -3/Research | Fabricated Hyp. Coil Gun (x2) 35743 | -3/Research | Discovered new exit (range 6) 35778 | -3/Research | Identified exit to Research 35884 | -3/Research | Discovered exit to Research (range 8) 35911 | -3/Research | Local fabrication network quarantined 35997 | -3/Research | Identified exit to Armory 35997 | -3/Research | Identified exit to Testing 36356 | -3/Research | First assault squad dispatched 36412 | -3/Research | Destroyed 10 combat bots 36586 | -3/Research | Found Gamma Bomb Array 37550 | -3/Research | Garrison activated, responded to threat 37753 | -3/Research | System corruption reached 10% 37831 | -3/Research | Found Gamma Bomb Array 37981 | -3/Research | Entered Armory 37981 | -3/Armory | Accompanied by 1 ally 38649 | -3/Armory | Build established: Wizard-Gunner 39399 | -3/Armory | Fabricated Hyp. Railgun (x2) 39455 | -3/Armory | Cargo convoy interrupted 39463 | -3/Armory | Spotted Executioner 39473 | -3/Armory | Destroyed Executioner 39501 | -3/Armory | Found Prototype Device 39502 | -3/Armory | Identified Exp. Force Field 39656 | -3/Armory | Found Prototype Device 39656 | -3/Armory | Identified Beam Splitter 39689 | -3/Armory | Fabricated Hyp. Railgun? 39691 | -3/Armory | Found Exp. Force Field 39771 | -3/Armory | Fabricated Hyp. Railgun (x2) 39849 | -3/Armory | Fabricated Hyp. Railgun (x2) 39981 | -3/Armory | First assault squad dispatched 40196 | -3/Armory | Fabricated Exp. Target Analyzer? 40294 | -3/Armory | Local fabrication network quarantined 40490 | -3/Armory | Discovered new exit (range 3) 40497 | -3/Armory | Entered Lab 40497 | -3/Lab | Discovered exit to Research (range 9) 40517 | -3/Lab | Unable to decrypt terminal 40517 | -3/Lab | Opened the door to a hidden lab 40518 | -3/Lab | Gained access to the hidden lab's interior 40531 | -3/Lab | Entered Research 40531 | -2/Research | Evolved 2 slots: Power x1, Utility x1 40561 | -2/Research | Identified exit to Quarantine 40668 | -2/Research | Deep Network Scanner fried by hacking feedback 41202 | -2/Research | Build established: Hacker-Mutant 41500 | -2/Research | Identified exit to Access 41984 | -2/Research | Build established: Hacker-Gunner 42753 | -2/Research | Fabricated Vortex Chain Reactor (x1) 42812 | -2/Research | Fabricated Exp. Weapon Cycler (x1) 43223 | -2/Research | Fabricated Exp. Energy Well (x1) 43599 | -2/Research | Spotted B-90 Cyclops 43618 | -2/Research | Destroyed B-90 Cyclops 43732 | -2/Research | Local fabrication network quarantined 43792 | -2/Research | Entered Access 43792 | -1/Access | Evolved 2 slots: Utility x2 44089 | -1/Access | Identified exit to Command 44242 | -1/Access | Fabricated Coolant Network (x1) 44542 | -1/Access | First assault squad dispatched 45787 | -1/Access | Repaired Lyr. Medium Armor Plating 45899 | -1/Access | Spotted B-99 Colossus 45953 | -1/Access | Destroyed B-99 Colossus 45959 | -1/Access | Found Prototype Ballistic Gun 46461 | -1/Access | Garrison activated, responded to threat 46579 | -1/Access | Fabricated Centrium Heavy Armor Plating (x1) 46608 | -1/Access | Build established: Wizard-Gunner 46817 | -1/Access | Repaired Hyp. Railgun 46911 | -1/Access | Build established: Machinist-Gunner 47525 | -1/Access | Garrison activated, responded to threat 47885 | -1/Access | Spotted B-99 Colossus 47891 | -1/Access | Destroyed B-99 Colossus 47928 | -1/Access | Identified Multirail 47945 | -1/Access | Found Centrium Heavy Armor Plating 48455 | -1/Access | Identified Transdimensional Reconstructor 48455 | -1/Access | Warped through subspace 48624 | -1/Access | Destroyed 9 combat bots 48958 | -1/Access | Destroyed 10 combat bots 49424 | -1/Access | Destroyed 8 combat bots 49480 | -1/Access | Spotted B-99 Colossus 49505 | -1/Access | Destroyed B-99 Colossus 49548 | -1/Access | Spotted B-99 Colossus 49578 | -1/Access | Destroyed B-99 Colossus 49582 | -1/Access | Found Multirail 49589 | -1/Access | Found Multirail 49619 | -1/Access | Found Multirail 49662 | -1/Access | Found Multirail 49681 | -1/Access | Sterilization system engaged 49717 | -1/Access | Entered Command 49999 | -1/Command | First assault squad dispatched 50064 | -1/Command | High security lockdown imminent 50144 | -1/Command | High security lockdown engaged 50238 | -1/Command | Destroyed Executioner 50238 | -1/Command | Spotted Executioner 50238 | -1/Command | Spotted Executioner 50239 | -1/Command | Destroyed Executioner 50240 | -1/Command | Destroyed Executioner 50269 | -1/Command | Destroyed 15 combat bots 50315 | -1/Command | System corruption reached 10% 50378 | -1/Command | Destroyed 13 combat bots 50461 | -1/Command | Build established: Machinist-Mutant 50504 | -1/Command | Spotted Striker 50535 | -1/Command | Destroyed Striker 50558 | -1/Command | Destroyed 26 combat bots 50564 | -1/Command | Lost 8 parts (1p6u1w) 50674 | -1/Command | Spotted Striker 50674 | -1/Command | Spotted Executioner 50674 | -1/Command | Spotted Executioner 50675 | -1/Command | Spotted Executioner 50676 | -1/Command | Spotted Striker 50679 | -1/Command | Spotted Executioner 50679 | -1/Command | Destroyed Executioner 50691 | -1/Command | Destroyed Striker 50691 | -1/Command | Destroyed Executioner 50694 | -1/Command | Destroyed Executioner 50694 | -1/Command | Destroyed Executioner 50696 | -1/Command | Destroyed Striker 50708 | -1/Command | Spotted Executioner 50708 | -1/Command | Spotted Executioner 50708 | -1/Command | Spotted Executioner 50708 | -1/Command | Spotted Striker 50712 | -1/Command | Destroyed Executioner 50713 | -1/Command | Destroyed Executioner 50714 | -1/Command | Destroyed Executioner 50727 | -1/Command | Destroyed Striker 50734 | -1/Command | Spotted Executioner 50734 | -1/Command | Spotted Striker 50740 | -1/Command | Destroyed Executioner 50742 | -1/Command | Destroyed Striker 50766 | -1/Command | Destroyed 27 combat bots 50813 | -1/Command | Found Corrupted Prototype Device 50813 | -1/Command | Identified Adv. Kinecellerator 50814 | -1/Command | System corruption reached 30% 50919 | -1/Command | Spotted Striker 50919 | -1/Command | Spotted Executioner 50919 | -1/Command | Spotted Striker 50919 | -1/Command | Spotted Striker 50921 | -1/Command | Destroyed Executioner 50923 | -1/Command | Destroyed Striker 50925 | -1/Command | Destroyed Striker 50926 | -1/Command | Destroyed Striker 50928 | -1/Command | Spotted Striker 50930 | -1/Command | Destroyed Striker 50944 | -1/Command | Spotted Executioner 50944 | -1/Command | Spotted Executioner 50955 | -1/Command | Spotted Striker 50955 | -1/Command | Spotted Executioner 50971 | -1/Command | Destroyed Executioner 50985 | -1/Command | Core integrity fell below 50% 50989 | -1/Command | Released all parts (8) 50996 | -1/Command | Core integrity fell below 20% 51006 | -1/Command | Destroyed 22 combat bots 51027 | -1/Command | Spotted B-99 Colossus 51027 | -1/Command | Destroyed by B-99 Colossus with Multirail Last Messages --------------- 51004_ Slug penetrates B-74 Champion. 51004_ Slug penetrates Earth. 51005_ P-80 Master resets G-73 Enforcer, system corruption cleaned. 51005_ Acquired Corrupted Cesium-ion Thruster. 51005_ Integrated Corrupted Cesium-ion Thruster (+4). 51006_ K-01 Serf collects debris. 51007_ Impulse Thruster Array destroyed. 51007_ Dropped Centrium Light Armor Plating. 51009_ Penetrated by Slug. 51009_ Cesium-ion Thruster destroyed. 51009_ Slug penetrates K-01 Serf. 51009_ K-01 Serf destroyed. 51009_ P-80 Master resets G-73 Enforcer, system corruption cleaned. 51010_ Slug penetrates B-74 Champion. 51010_ Slug penetrates Wall. 51012_ System corrupted: Matter fused (-7). 51012_ Slug penetrates I-47 Archangel. 51027_ System corrupted: Matter fused (-10). 51027_ Centrium Light Armor Plating destroyed. 51027_ Penetrated by Slug. Map ----- +----------------------------------------------------+ | ?????????????????????????????????????????????????? | | ?????????????????????????????????????????????????? | | ?????????????????????????????????????????????????? | | ?????????????????????????????????????????????????? | | ?????????????????????????????????????????????????? | | ?????????????????????????????????????????????????? | | ?????????????????????????????????????????????????? | | ?????????????????????????????????????????????????? | | ?????????????????????????????????????????????????? | | ?????????????????????????????????????????????????? | | ???????????????????????????#?????????????????????? | | ???????????????????????????BB#???????????????????? | | ???????????????????" ""####BB#???????????????????? | | ??????????????????? #???????????????????? | | ??????????????????? ! #???????????????????? | | ?????????????????? +???????????????????? | | ?????????????????? #???????????????????? | | ????????????????#? #???????????????????? | | ????????????????# !! #???????????????????? | | ????????????????# !! #???????????????????? | | ????????????????# #???????????????????? | | ????????????????# #???????????????????? | | ????????????????# #???????????????????? | | ????????????????# "" #???????????????????? | | ????????????????# """" +???????????????????? | | ????????????????# """"@ #???????????????????? | | ????????????????# "" %% #???????????????????? | | ????????????????# #???????????????????? | | ????????????????# #???????????????????? | | ????????????????# #???????????????????? | | ????????????????# #???????????????????? | | ????????????????# #???????????????????? | | ????????????????# ! #???????????????????? | | ????????????????# #???????????????????? | | ????????????????# k ! #??????????????????? | | ???????????????###s###### #??????????????????? | | ???????????????# s ## #??????????????????? | | ???????????????# ss #? #??????????????????? | | ???????????????# #? #??????????????????? | | ???????????????# #? #??????????????????? | | ???????????????# #? #??????????????????? | | ???????????????# ## #??????????????????? | | ???????????????# #" #??????????????????? | | ?????????????####+##"###"p ##+##??????????????? | | ?????????????+ ??????????????? | | ?????????????+ ?????????????? | | ?????????????+ ?????????????? | | ?????????????+ ????????????? | | ?????????????+ ?????????????? | | ?????????????####### "" ??????????????? | +----------------------------------------------------+ Best States ------------- Heat Dissipation 162 Energy Generation 75 Energy Capacity 1380 Matter Stores 300 Matter Capacity 550 Sight Range 16 Robot Scan Range 20 Terrain Scan Density 10 Power Amplification 40 Armor Coverage 1500 Resistance: KI 30 Resistance: TH 15 Core Shielding 30 Weapon Shielding 66 Weapon Cycling 30 Evasion (%) 50 Targeting Accuracy 16 Target Analysis 10 Core Analysis 10 Armor Integrity Analysis 45 Recoil Reduction 4 Kinecelleration 50 Offensive Hacking 73 Defensive Hacking 20 Item Schematics ----------------- Hacking Suite | -8/Materials | Hacked Imp. Weapon Shielding | -8/Materials | Scanalyzed Flak Gun | -7/Factory | Scanalyzed Hvy. Siege Treads | -6/Factory | Scanalyzed Combat Drone Bay | -6/Data Miner | Free Lgt. Regenerative Plating | -6/Data Miner | Free Cmb. Gravmag System | -6/Data Miner | Free Triangulator | -6/Data Miner | Free Exp. Sensor Array | -6/Data Miner | Free Exp. Transmission Jammer | -6/Data Miner | Free Cloaking Device | -6/Data Miner | Free Mni. Smartbomb Launcher | -6/Data Miner | Free Adv. Armor Integrity Analyzer | -5/Factory | Hacked Huge Storage Unit | -5/Extension | Hacked Adv. Weapon Cycler | -4/Factory | Hacked Centrium Heavy Treads | -4/Factory | Scanalyzed Adv. Hacking Suite | -4/Factory | Hacked Hyp. Gauss Rifle | -4/Factory | Hacked Hyp. Coil Gun | -4/Factory | Hacked Assault Drone Bay | -4/Zhirov | Free Exp. Heat Sink | -4/Zhirov | Free Exp. Optical Array | -4/Zhirov | Free Imp. Arc Thrower | -4/Zhirov | Free Hyp. Railgun | -3/Research | Scanalyzed Exp. Target Analyzer | -3/Research | Hacked Vortex Chain Reactor | -2/Research | Hacked Exp. Weapon Cycler | -2/Research | Hacked Coolant Network | -2/Research | Hacked Exp. Energy Well | -2/Research | Hacked Centrium Heavy Armor Plating | -1/Access | Hacked Robot Schematics ------------------ S-27 Virus | -6/Data Miner | Free G-50 Soldier | -6/Data Miner | Free L-41 Fighter | -6/Data Miner | Free H-66 Slayer | -6/Data Miner | Free I-36 Angel | -6/Data Miner | Free Fabricated ------------ Flak Gun | x2 | -7/Factory Flak Gun | x2 | -7/Factory Flak Gun | x2 | -6/Factory Flak Gun | x2 | -6/Factory Flak Gun | x2 | -6/Factory Flak Gun | x2 | -5/Factory Flak Gun | x2 | -5/Factory Flak Gun | x2 | -5/Factory Hvy. Siege Treads | x2 | -5/Factory Exp. Sensor Array | x1 | -5/Factory Mni. Smartbomb Launcher | x1 | -5/Factory Adv. Armor Integrity Analyzer | x1 | -5/Factory Adv. Weapon Cycler | x2 | -4/Factory Imp. Weapon Shielding | x2 | -4/Factory Flak Gun | x2 | -4/Factory Centrium Heavy Treads | x1 | -4/Factory Centrium Heavy Treads | x1 | -3/Research Hyp. Coil Gun | x2 | -3/Research Hyp. Coil Gun | x2 | -3/Research Hyp. Railgun | x2 | -3/Armory Hyp. Railgun | x2 | -3/Armory Hyp. Railgun | x2 | -3/Armory Hyp. Railgun | x2 | -3/Armory Exp. Target Analyzer | x1 | -3/Armory Vortex Chain Reactor | x1 | -2/Research Exp. Weapon Cycler | x1 | -2/Research Exp. Energy Well | x1 | -2/Research Coolant Network | x1 | -1/Access Centrium Heavy Armor Plating | x1 | -1/Access Alien Tech Used ----------------- Integrated Dissipator Transdimensional Reconstructor Achievements -------------- None Challenges ------------ None Game ------ Seed LargeActuatorPick Manual? 0 Play Time 05:42:57 Cumulative 1216.8 hours Start 2021.05.25 @ 21:07:26 End 2021.05.26 @ 20:31:41 Sessions 3 Manual Loads 0 Difficulty Rogue Special Mode None Game No. 412 Rogue 412 Adventurer 0 Explorer 0 Win Type - Total 88 Types 17/12/37/5/1/2/12/1/1 Lore% 97 Gallery% 96 Achievement% 85 Wizard Run 0 Options --------- ASCII 0 Keyboard 0 Movement Numpad Keybinds 0 Fullscreen 1 Font 18/SmallcapsGlow Map View 76x50 Tactical HUD 1 Map Filters NONE Filters NONE Steam 1 RUN: 1a43fa13-be31-43ac-be36-bbbe3c6fd561